Cogmind - Beta 15 @@@ ROGUE MODE // 2025.05.17 @ 00:41:45 Player: Wyvric Result: Defending 0bPrime! Performance ------------- Evolutions (8) 4000 Regions Visited (25) 5000 Robots Destroyed (589) 2945 Value Destroyed (37226) 37226 Prototype IDs (141) 2820 Alien Tech Used (5) 1000 Bonus (48489) 48489 TOTAL SCORE: 101480 Bonus ------- High Alert Combat Kills 17819 Follower Combat Kills 1948 Network Hubs Disabled 800 Registered with UFD 300 Met Optimus in HQ 500 Met Zhirov 300 MAIN.C Attacked Warlord 500 Warlord Defense Kills 6256 Built Enhanced Grunts 300 A7 Reached Mainframe 300 Met R17 at Cetus 500 Found Hidden Lab 3000 Met R17 at Research 2000 Scanned by Researcher 500 Met Optimus at Protoforge 1000 Completed Drillbomb Mission10000 Optimus Survived to 0b1 3000 Win 3000 Friendly Fire -3534 Cogmind --------- Core Integrity 798/1450 Matter 300/300 Energy 600/600 System Corruption 11% Temperature Cool (0) Movement Walking (140) Location 0bPrime Parts ------- > --- POWER (2) -------- Improved Quantum Reactor (fused) Improved Quantum Reactor > --- PROPULSION (8) --- Experimental Armored Exoskeleton Experimental Armored Exoskeleton > --- UTILITY (11) ----- 0bPrime Scrap Suit Concept Antigrav Storage Unit Spectral Analyzer Concept Weapon Articulator Experimental Core Analyzer SHELL Armor Graphene Brace Concept Matter Streamer > --- WEAPON (2) ------- Concept Plasma Driver Concept Helical Railcannon > --- INVENTORY (25) --- Light Quantum Reactor Light Quantum Reactor Advanced Coolant Injector Concept NT7 Matterbank (750) Advanced Phase Shifter Concept Lightning Penetrator Concept Lightning Penetrator Concept Variable Chargecaster Concept Helical Railcannon Concept Heavy Railcannon Concept Heavy Railcannon Concept Arcsight Missile Launcher Concept Smart ZDS Peak State ------------ > --- POWER ------------ Reinforced Antimatter Reactor Reinforced Quantum Reactor > --- PROPULSION ------- Experimental Armored Exoskeleton Experimental Armored Exoskeleton > --- UTILITY ---------- Concept Antigrav Storage Unit Spectral Analyzer Concept Weapon Articulator Experimental Core Analyzer Experimental Reaction Control System SHELL Armor Experimental Force Field Experimental System Purifier Crosscalibrator > --- WEAPON ----------- Concept XC Strikerail Concept XC Strikerail > --- INVENTORY -------- Experimental Armored Exoskeleton Concept Biometal Exoskeleton Concept Biometal Exoskeleton Advanced Coolant Injector Concept Chromion Battery Concept NT7 Matterbank Precision Matter Filter Graphene Brace Experimental EM Shield Concept Matter Streamer Transdimensional Reconstructor Concept Lightning Penetrator Concept Variable Chargecaster Concept Plasma Driver Concept Plasma Driver Concept Miniperforator Concept Heavy Railcannon Concept Arcsight Missile Launcher Concept Smart ZDS [Rating: 262] Favorites ----------- Power Quantum Reactor Engine Ion Engine Power Core Fission Core Reactor Quantum Reactor Propulsion Centrium Heavy Treads Treads Centrium Heavy Treads Leg Centrium Leg Wheel Armored Wheel Utility Huge Storage Unit Device Advanced Sensor Array Storage Huge Storage Unit Processor Experimental Targeting Computer Hackware Advanced Hacking Suite Protection Medium Regenerative Plating Weapon Spread Laser Energy Gun Spread Laser Energy Cannon Heavy Plasma Cannon Ballistic Gun Hypervelocity Multirail Ballistic Cannon Concept Miniperforator Launcher Long-range Missile Launcher Special Weapon Mining Laser Impact Weapon Makeshift Hammer Build | -11 -10 -10 -9 -9 -6 -6 -6 -6 -6 -5 -5 -5 -5 -4 -4 -4 -4 -4 -3 -3 -3 -3 -2 -2 -2 ------- Run | Yrd Mat Sub Rec Scr Fac Ext Cet Arc Hub Fac Upp Upp Zhi Pro Fac Upp Upp War Pro Res Arm Lab Res Tes Frg Slots Evolved 16 | . . . . . 8 . . . . 2 . . . . 2 . . . . 2 . . 2 . . Power 1 | . . . . . 1 . . . . . . . . . . . . . . . . . . . . Propulsion 6 | . . . . . 2 . . . . . . . . . 2 . . . . 2 . . . . . Utility 9 | . . . . . 5 . . . . 2 . . . . . . . . . . . . 2 . . Weapon . | . . . . . . . . . . . . . . . . . . . . . . . . . . Parts Attached 305 | 7 9 11 . 11 28 19 29 . 11 17 2 3 4 5 6 3 4 15 1 10 18 1 21 15 55 Power 34 | 1 . 1 . 1 3 4 5 . . 2 . . 2 . . . . 1 . 1 5 . 1 2 5 Engine 7 | 1 . 1 . 1 1 2 . . . 1 . . . . . . . . . . . . . . . Core 3 | . . . . . 2 1 . . . . . . . . . . . . . . . . . . . Reactor 24 | . . . . . . 1 5 . . 1 . . 2 . . . . 1 . 1 5 . 1 2 5 Propulsion 62 | 2 . 4 . 5 3 3 5 . . . . . . 2 2 2 . 4 . 5 6 . 4 6 9 Treads 26 | 2 . 1 . 2 3 2 5 . . . . . . 2 1 2 . 4 . . 1 . 1 . . Leg 28 | . . . . . . 1 . . . . . . . . . . . . . 4 5 . 3 6 9 Wheel 8 | . . 3 . 3 . . . . . . . . . . 1 . . . . 1 . . . . . Hover . | . . . . . . . . . . . . . . . . . . . . . . . . . . Flight . | . . . . . . . . . . . . . . . . . . . . . . . . . . Utility 124 | 2 4 2 . 4 15 8 9 . 8 10 2 2 2 1 2 . 3 7 . 2 3 1 14 3 20 Device 70 | 1 1 1 . 3 9 4 3 . 4 5 1 . 2 1 1 . 2 3 . 1 3 . 9 2 14 Storage 12 | 1 2 . . 1 . . 2 . 1 1 . . . . . . . . . . . . 1 . 3 Processor 17 | . . 1 . . 2 . . . 2 2 . 1 . . . . . 3 . 1 . . 2 . 3 Hackware 6 | . . . . . . . . . . 2 . . . . 1 . 1 . . . . 1 1 . . Protection 19 | . 1 . . . 4 4 4 . 1 . 1 1 . . . . . 1 . . . . 1 1 . Artifact . | . . . . . . . . . . . . . . . . . . . . . . . . . . Weapon 85 | 2 5 4 . 1 7 4 10 . 3 5 . 1 . 2 2 1 1 3 1 2 4 . 2 4 21 Energy Gun 24 | 2 2 2 . . . . 3 . . 2 . . . . . . . 2 . . 2 . 1 1 7 Energy Cannon 34 | . 2 1 . 1 4 1 2 . 2 3 . 1 . 1 2 . 1 1 1 2 2 . 1 2 4 Ballistic Gun 8 | . . . . . . . 4 . . . . . . . . . . . . . . . . 1 3 Ballistic Cannon 3 | . . . . . . . . . . . . . . . . . . . . . . . . . 3 Launcher 10 | . 1 . . . 2 1 . . 1 . . . . 1 . . . . . . . . . . 4 Special Weapon 5 | . . 1 . . 1 2 1 . . . . . . . . . . . . . . . . . . Impact Weapon 1 | . . . . . . . . . . . . . . . . 1 . . . . . . . . . Slashing Weapon . | . . . . . . . . . . . . . . . . . . . . . . . . . . Piercing Weapon . | . . . . . . . . . . . . . . . . . . . . . . . . . . Special Melee Weapon . | . . . . . . . . . . . . . . . . . . . . . . . . . . Unidentified Prototypes 31 | . . . . . 1 1 9 . 3 2 1 . 3 2 . . . 2 . . . 2 . 2 3 Parts Lost 43 | . . 2 . . 9 7 . . 2 4 . . . 2 1 . . 2 1 . . . 3 1 9 Power 7 | . . . . . 2 1 . . . 2 . . . . . . . . . . . . . 1 1 Propulsion 9 | . . 2 . . 2 2 . . . . . . . 1 1 . . . . . . . . . 1 Utility 22 | . . . . . 4 4 . . 2 2 . . . 1 . . . . 1 . . . 2 . 6 Weapon 5 | . . . . . 1 . . . . . . . . . . . . 2 . . . . 1 . 1 Highest Loss Streak 6 | . . 1 . . 6 2 . . 1 2 . . . 1 1 . . 2 1 . . . 1 1 1 To Critical Strikes . | . . . . . . . . . . . . . . . . . . . . . . . . . . Average Backups 20 | 4 11 18 19 17 17 19 18 18 20 22 23 23 23 21 22 24 23 24 23 24 23 7 22 22 19 Power 1 | . 1 1 1 . . . 1 1 1 . 1 1 1 1 1 1 1 2 3 2 2 . 1 . 1 Propulsion 2 | 2 2 2 2 4 2 1 1 2 2 2 3 3 3 1 . 1 2 1 2 2 2 . 3 3 1 Utility 9 | . 3 6 7 6 3 5 6 9 10 11 10 12 11 11 13 15 14 15 13 14 14 3 13 12 7 Weapon 5 | . 4 8 9 4 5 7 7 5 4 5 7 6 5 4 3 3 3 2 3 3 2 1 1 4 7 Tool/Special . | . . . . . . . . . . . . . . . . . . . . . . . . . . Unused Backups 157 | . 6 1 . 32 19 11 5 . 2 9 . 2 . . 2 2 . 5 . . 6 3 7 8 37 Power 17 | . 1 . . 3 1 1 1 . 1 . . . . . . 1 . . . . 3 . . . 5 Propulsion 22 | . 2 . . 5 . 5 . . . . . . . . 1 . . 3 . . 1 . . 3 2 Utility 69 | . 1 1 . 11 8 1 3 . 1 7 . 2 . . 1 . . 1 . . 1 3 4 3 21 Weapon 44 | . 2 . . 13 8 4 1 . . 2 . . . . . 1 . . . . 1 . 3 2 7 Tool/Special 5 | . . . . . 2 . . . . . . . . . . . . 1 . . . . . . 2 Average Slot Usage (%) 86 | . 100 100 100 97 95 99 87 86 85 86 80 81 81 88 83 79 77 77 88 82 84 61 92 83 72 Engine 3 | . 14 14 14 13 2 2 1 . . . 5 5 3 . . . . . . . . . . . . Reactor 6 | . . . . . . 4 10 13 13 10 5 5 6 11 9 10 10 6 5 7 8 3 8 7 7 Treads 12 | . 28 24 . 1 12 20 14 13 13 11 11 11 11 14 19 16 15 18 26 18 1 . 1 1 . Leg 4 | . . . . . . . . . . . . . . . . . . . . 4 29 33 28 31 17 Wheel 3 | . . 3 28 26 13 4 . . . . . . . . 1 . . . . 3 . . . . . Device 12 | . 6 13 . 11 21 17 10 13 13 18 12 10 10 14 8 5 5 8 17 8 8 1 15 9 16 Storage 6 | . 14 14 14 13 6 6 6 6 6 5 5 5 5 5 5 5 5 5 5 4 4 2 4 4 4 Processor 11 | . . . . . 8 13 13 13 11 18 17 17 17 17 15 15 15 14 15 14 14 14 16 13 11 Hackware 1 | . . . . . . . . . . 3 . . . . 4 5 8 5 5 4 1 1 4 3 . Protection 6 | . 7 . 14 2 7 7 14 13 13 4 10 11 11 10 6 9 6 6 3 4 4 1 4 3 4 Energy Gun 5 | . 13 23 . 25 . . 6 . . . . . 5 7 . . . . . . 2 . . . 3 Energy Cannon 6 | . 13 . 14 1 11 11 1 12 12 10 8 10 5 1 9 10 9 9 9 8 5 1 6 3 2 Peak Build Rating 262 | 9 11 13 10 25 66 74 126 121 123 140 127 130 129 128 130 134 135 154 150 161 184 173 207 220 262 Average Rating 112 | 5 9 11 10 17 57 70 112 116 115 123 121 118 122 119 123 129 129 141 146 150 173 121 196 204 238 On Entrance 104 | . 9 11 10 10 22 64 69 116 116 123 120 127 119 125 98 129 130 129 149 147 161 173 172 202 186 Naked Turns . | . . . . . . . . . . . . . . . . . . . . . . . . . . Heaviest Build 201 | 13 54 54 54 58 87 95 114 114 166 159 154 160 153 153 158 152 159 173 168 158 176 168 186 199 201 Greatest Support 240 | 40 40 40 32 50 46 110 176 160 160 160 160 160 160 160 200 230 225 230 188 188 233 233 238 240 240 Greatest Overweight (x) 13 | . 1 3 1 13 3 3 1 . 1 . . . . 1 5 . . 1 1 5 5 . 1 1 1 Average Overweight (x) . | . . 1 1 1 2 1 . . . . . . . . 1 . . . . 2 . . . . . Largest Inventory Capacity 25 | 8 20 20 20 20 20 20 20 20 25 25 25 25 25 25 25 25 25 25 25 25 25 25 25 25 25 Average Capacity 22 | 7 14 20 20 19 20 20 20 20 24 25 25 25 25 25 25 25 25 25 25 25 25 15 25 25 25 Most Carried 25 | 8 17 20 20 20 20 20 20 20 25 25 25 25 25 25 25 25 25 25 25 25 25 25 25 25 25 Average Carried 21 | 4 11 19 20 18 19 19 19 20 22 24 24 24 24 23 23 24 24 24 24 24 24 7 24 24 23 Final Capacity 25 | 8 20 20 20 20 20 20 20 20 25 25 25 25 25 25 25 25 25 25 25 25 25 25 25 25 25 Final Carried 25 | 7 17 20 20 20 19 20 20 20 25 25 25 25 25 25 25 25 24 25 24 25 25 25 24 25 15 Class Distribution -------------------- 34% | Scavenger-Mutant 33% | Mutant 10% | Scavenger-Skirmisher 7% | Hacker-Mutant 6% | Commander-Mutant Dominant Class ---------------- Mutant | -10/Materials Mutant | -10/Subcaves Mutant | -9/Recycling Mutant | -9/Scraptown Derelict-Mutant | -6/Factory Scavenger-Mutant | -6/Extension Commander-Mutant | -6/Cetus Commander-Mutant | -6/Archives Scavenger-Mutant | -6/Hub_04(d) Scavenger-Skirmisher | -5/Factory Scavenger-Mutant | -5/Upper Caves Scavenger-Mutant | -5/Upper Caves Scavenger-Mutant | -5/Zhirov Scavenger-Mutant | -4/Proximity Caves Scavenger-Mutant | -4/Factory Mutant | -4/Upper Caves Hacker-Mutant | -4/Upper Caves Mutant | -4/Warlord Scavenger-Skirmisher | -3/Proximity Caves Scavenger-Skirmisher | -3/Research Mutant | -3/Armory Mutant | -3/Lab Hacker-Mutant | -2/Research Hacker-Mutant | -2/Testing Scavenger-Mutant | -2/Protoforge Resources | -11 -10 -10 -9 -9 -6 -6 -6 -6 -6 -5 -5 -5 -5 -4 -4 -4 -4 -4 -3 -3 -3 -3 -2 -2 -2 ----------- Run | Yrd Mat Sub Rec Scr Fac Ext Cet Arc Hub Fac Upp Upp Zhi Pro Fac Upp Upp War Pro Res Arm Lab Res Tes Frg Matter Collected 19506 | 204 238 488 . 150 444 531 483 64 319 774 192 200 40 408 261 171 580 708 240 360 234 . 772 631 11014 Remotely 7450 | . . . . . . . . . . . . . . . . . . . . . . . . . 7450 Salvage Created 24212 | 51 408 331 . . 1320 1580 192 51 1281 2610 194 470 296 466 659 23 657 1217 203 149 342 . 1877 1225 8610 Parts 1009 | 6 30 35 . . 53 42 19 3 52 96 6 15 3 16 15 2 17 30 5 2 19 . 94 63 386 Haulers Intercepted 3 | . 1 . . . 1 1 . . . . . . . . . . . . . . . . . . . Recyclers Shooed 7 | . 2 . . . . . . . 1 3 . . . . . . . . . . . . . 1 . Parts Field Recycled . | . . . . . . . . . . . . . . . . . . . . . . . . . . Retrieved Matter . | . . . . . . . . . . . . . . . . . . . . . . . . . . Parts Self-Destructed 63 | . . 25 . . . . . . . . . 9 2 13 . . 11 . 3 . . . . . . Prevented 10 | . . . . . . . . . . . 6 4 . . . . . . . . . . . . . Kills | -11 -10 -10 -9 -9 -6 -6 -6 -6 -6 -5 -5 -5 -5 -4 -4 -4 -4 -4 -3 -3 -3 -3 -2 -2 -2 ------- Run | Yrd Mat Sub Rec Scr Fac Ext Cet Arc Hub Fac Upp Upp Zhi Pro Fac Upp Upp War Pro Res Arm Lab Res Tes Frg Combat Hostiles Destroyed 518 | . 14 17 . . 23 20 . . 20 36 3 10 . 14 9 . 18 47 6 . 5 . 22 15 239 Guns 68 | . 2 17 . . . . . . . . . . . 6 . . . 3 . . . . . . 40 Cannons 183 | . 4 . . . 13 14 . . 13 26 2 4 . . 8 . 4 4 2 . 4 . 22 13 50 AOE 216 | . 8 . . . 6 4 . . 5 2 . 5 . 8 . . 14 38 4 . . . . 1 121 Classes Destroyed 33 | 1 6 2 . . 4 1 1 . 3 . . 2 . . . . 1 2 1 . . . . . 9 Worker 7 | . 1 . . . . . . . 1 3 . . . . . . . . . . . . 1 1 . Builder 10 | . 1 . . . 1 . . . 1 2 . . . . . . . . . . . . 3 . 2 Tunneler 2 | 2 . . . . . . . . . . . . . . . . . . . . . . . . . Hauler 3 | . 1 . . . 1 1 . . . . . . . . . . . . . . . . . . . Recycler 10 | . . . . . . 3 . . 1 4 . . . . . . . . . 1 . . . 1 . Carrier 2 | . . . . . . . . . . . . . . . . . . . . . . . . . 2 Minesweeper 1 | . . . . . . . . . . . . 1 . . . . . . . . . . . . . Mechanic 13 | . . . . . . . . . . . . . . . . . . . . . . . . . 13 Operator 2 | . 1 . . . . . . . . . . . . . . . . . . . . . . 1 . Drone 11 | . . . . . . . . . . . . . . . . . . . . . . . . . 11 Turret 2 | . . 2 . . . . . . . . . . . . . . . . . . . . . . . Watcher 11 | . . . . . . . 1 . 1 2 . . . . . . . . . 1 1 . 2 . 3 Swarmer 70 | . 6 6 . . 3 . . . . 4 . 5 . 5 . . 7 3 4 . 1 . . . 26 Saboteur 7 | . . . . . . . . . 1 . . . . . . . . 4 . . . . . . 2 Grunt 151 | . 8 . . . 10 13 . . 7 15 3 4 . 8 5 . 7 20 . . . . 8 3 40 Brawler 14 | . . . . . . . . . . . . 1 . . . . 1 4 . . . . . 1 7 Duelist 19 | . . . . . . . . . 2 1 . . . 1 1 . 1 2 . . . . 1 . 10 Protector 16 | . . . . . . . . . . . . . . . . . 1 3 . . . . . . 12 Researcher 4 | . . . . . . . . . . . . . . . . . . . . . . . . . 4 Sentry 36 | . . . . . 3 5 . . 3 5 . . . . 2 . 2 . . . . . 4 . 12 Specialist 6 | . . . . . . . . . 1 . . . . . . . . 2 . . . . . . 3 Hunter 42 | . . . . . 1 . . . 1 4 . . . . . . . 4 2 . . . 2 2 26 Programmer 64 | . . . . . 5 . . . 2 7 . . . . 1 . . . . . 4 . 7 9 29 Q-Series 1 | . . . . . . . . . . . . . . . . . . . . . . . . . 1 Behemoth 3 | . . . . . 1 2 . . . . . . . . . . . . . . . . . . . Enhanced Grunt 1 | . . . . . . . 1 . . . . . . . . . . . . . . . . . . Lightning 3 | . . . . . . . . . 3 . . . . . . . . . . . . . . . . Hotshot 2 | . . . . . . . . . . . . . . . . . . . . . . . . . 2 Decapitator 7 | . . . . . . . . . . . . . . . . . . . . . . . . . 7 Immortal 4 | . . . . . . . . . . . . . . . . . . . . . . . . . 4 Overlord 1 | . . . . . . . . . . . . . . . . . . . . . . . . . 1 Striker 23 | . . . . . . . . . . . . . . . . . . 1 . . . . . . 22 Executioner 26 | . . . . . . . . . . . . . . . . . . 4 . . . . . . 22 Alpha 7 1 | . . . . . . . . . . . . . . . . . . . . . . . . . 1 V-Series 1 | . . . . . . . . . . . . . . . . . . . . . . . . . 1 Subdweller 11 | . . 11 . . . . . . . . . . . . . . . . . . . . . . . Decomposer 2 | . . . . . . . . . . . . . . . . 2 . . . . . . . . . Packrat 1 | . . . . . . . . . . . . 1 . . . . . . . . . . . . . Samaritan 1 | . . . . . . . . . . . . . . . . . . . 1 . . . . . . Guerrilla 1 | . . . . . . . . 1 . . . . . . . . . . . . . . . . . Best Kill Streak 23 | 2 4 4 . . 5 8 1 . 5 15 3 5 . 4 4 . 5 16 4 1 3 . 6 4 23 Combat Bots Only 21 | . 3 4 . . 5 5 . . 5 10 3 5 . 4 4 . 5 16 4 . 2 . 5 4 21 Max Kills in Single Turn 6 | 1 3 2 . . 3 2 1 1 2 4 1 4 . 2 2 1 3 4 3 1 1 . 1 1 6 Gunslinging 1 | . . 1 . . . . . . . . . . . . . . . . . . . . . . . Exploded 6 | . 3 . . . 2 2 . . 2 1 . 4 . 2 . . 3 4 3 . . . . 1 6 Melee . | . . . . . . . . . . . . . . . . . . . . . . . . . . Uniques/NPCs Destroyed 1 | . . . . . . . 1 . . . . . . . . . . . . . . . . . . A7 (-6/Cetus) Combat | -11 -10 -10 -9 -9 -6 -6 -6 -6 -6 -5 -5 -5 -5 -4 -4 -4 -4 -4 -3 -3 -3 -3 -2 -2 -2 -------- Run | Yrd Mat Sub Rec Scr Fac Ext Cet Arc Hub Fac Upp Upp Zhi Pro Fac Upp Upp War Pro Res Arm Lab Res Tes Frg Hostile Shots Fired 2822 | . 36 84 . . 159 148 26 18 154 215 15 20 . 71 57 . 48 304 110 45 32 . 206 120 954 Missed 968 | . 12 26 . . 65 56 8 4 63 70 5 8 . 17 15 . 17 104 24 12 7 . 68 37 350 Hits 1854 | . 24 58 . . 94 92 18 14 91 145 10 12 . 54 42 . 31 200 86 33 25 . 138 83 604 Melee 78 | . . . . . . . . . . 5 . . . . 3 . . 11 . 7 . . 3 . 49 Projectile 1776 | . 24 58 . . 94 92 18 14 91 140 10 12 . 54 39 . 31 189 86 26 25 . 135 83 555 AOE 5 | . . . . . . . . . . 1 . . . . . . . . . . . . 1 . 3 Critical Strikes 151 | . . 1 . . 2 1 2 . 14 9 1 1 . 8 3 . 2 20 4 2 2 . 4 6 69 Actively Blocked 66 | . . . . . . . . . . . . . . . . . . 1 4 1 . . 2 . 58 Part Disruptions 23 | . . . . . . . . . . . . . . . . . . 1 . . 1 . . . 21 Damage Taken 36086 | . 263 871 . . 1708 1265 529 325 2092 2786 192 215 . 936 1043 . 728 3348 1185 984 211 . 2537 1675 13193 Core 2499 | . 38 183 . . 134 146 35 25 232 192 . 23 . 57 49 . . 332 100 35 6 . 137 101 674 Absorbed by Shields 4964 | . . . . . 16 34 54 . . . . . . 71 . . . 1386 345 . . . 486 47 2525 Reduced by Siege Mode 177 | . . . . . . . 8 7 49 87 . . . . . . . . 26 . . . . . . Redirected to Shielding 52 | . . . . . . 52 . . . . . . . . . . . . . . . . . . . Ignored by Resistances 3646 | . . . . . 27 . . . 128 250 . . . . . . . . . . 384 . 234 430 2193 Regen/Repaired (Parts) 7454 | . . . . 300 . . 60 11 248 1061 120 32 . 139 10 53 38 160 . . . . 180 509 4533 Core Remaining (%) 59 | 100 . . . 11 . . . . 32 . . . . 72 . . . . 58 . . 88 . . 55 Volleys Fired 1438 | 3 23 59 . . 78 51 32 12 71 124 10 26 8 38 43 5 36 67 24 14 26 25 109 98 456 Largest 2 | 2 2 2 . . 2 2 2 2 2 2 1 2 2 2 2 2 2 2 2 2 2 1 2 1 2 Hottest 285 | 80 130 130 . . 210 180 160 170 170 180 70 188 160 160 203 188 188 203 180 210 240 120 240 200 285 Shots Fired 2173 | 6 40 96 . . 127 99 61 24 132 188 10 49 16 58 67 9 56 92 45 21 34 25 185 97 636 Gun 575 | 6 10 74 . . . . 58 10 . . . . 16 40 . . . 10 . . 7 . 15 1 328 Cannon 1393 | . 24 . . . 114 95 . 14 126 188 10 47 . 1 67 9 42 49 41 21 27 25 170 96 227 Launcher 187 | . 6 9 . . 12 3 . . 6 . . 2 . 17 . . 14 33 4 . . . . . 81 Special 18 | . . 13 . . 1 1 3 . . . . . . . . . . . . . . . . . . Kinetic 75 | . . . . . . . 22 . . . . . . . . . . . . . . . . 1 52 Thermal 1697 | 6 34 87 . . 114 95 36 24 126 171 . 47 16 41 67 9 42 49 41 21 34 25 185 96 331 Explosive 175 | . 6 9 . . . 3 . . 6 . . 2 . 17 . . 14 33 4 . . . . . 81 Electromagnetic 211 | . . . . . 12 . . . . 17 10 . . . . . . . . . . . . . 172 Entropic 10 | . . . . . . . . . . . . . . . . . . 10 . . . . . . . Robot Hit Streak 45 | 3 4 34 . . 15 17 14 13 14 26 3 4 15 16 45 1 13 15 6 4 3 . 15 8 45 Robot Miss Streak 9 | 1 4 7 . . 1 2 3 1 2 2 3 2 . 4 1 2 1 2 4 2 3 . 7 6 9 Penetration Max 1 | . . . . . . . 1 . . 1 . . . . . . . . . . . . . . 1 Secondary Targets 16 | . . 4 . . . . . . . . . . . 2 . . . . . . . . . . 10 Max Gunslinging Chain 1 | . . 1 . . . . . . . . . . . 1 . . . . . . . . . . 1 Capacitor 209 | . . . . . . . . . . . . . . . . . . . . . 17 7 . 96 89 Shots Hit Robots 1308 | 4 23 67 . . 75 76 43 21 81 106 6 19 13 37 35 2 26 61 21 5 16 . 95 43 433 Core Hits 1135 | 2 34 93 . . 38 50 17 6 47 58 3 15 6 29 17 2 42 133 11 2 7 . 49 23 451 Critical Kills 45 | . . . . . 1 3 1 . 1 2 . 1 . . 1 . 1 2 . 1 1 . . . 30 Critical Parts Destroyed 13 | . . . . . . . 1 . . . . . . . . . . 1 . . . . . . 11 Critical Strikes 80 | . . . . . 1 3 2 . 1 8 3 1 . . 1 . 1 3 . 1 1 . . . 54 Meltdown 28 | . . . . . 1 3 . . 1 2 . 1 . . 1 . 1 2 . 1 1 . . . 14 Destroy 31 | . . . . . . . 2 . . . . . . . . . . . . . . . . . 29 Blast 4 | . . . . . . . . . . . . . . . . . . . . . . . . . 4 Corrupt 16 | . . . . . . . . . . 6 3 . . . . . . . . . . . . . 7 Detonate 1 | . . . . . . . . . . . . . . . . . . 1 . . . . . . . Melee Attacks . | . . . . . . . . . . . . . . . . . . . . . . . . . . Impact . | . . . . . . . . . . . . . . . . . . . . . . . . . . Slashing . | . . . . . . . . . . . . . . . . . . . . . . . . . . Piercing . | . . . . . . . . . . . . . . . . . . . . . . . . . . Sneak Attacks . | . . . . . . . . . . . . . . . . . . . . . . . . . . Combat Hostiles . | . . . . . . . . . . . . . . . . . . . . . . . . . . Follow-up Attacks . | . . . . . . . . . . . . . . . . . . . . . . . . . . Damage Inflicted 120424 | 44 846 1378 . . 3620 3278 1223 610 3730 5846 313 1026 422 2420 1362 69 3132 10647 1245 221 745 . 4279 2693 71275 Guns 13572 | 44 76 1115 . . . . 1223 244 . . . . 422 829 . . . 690 . . 191 . 396 6 8336 Cannons 35239 | . 246 . . . 2704 2576 . 366 2567 4224 313 584 . . 1266 69 576 1005 660 210 554 . 3774 2191 11354 Explosions 71054 | . 484 263 . . 916 702 . . 1107 1539 . 442 . 1591 96 . 2556 8952 585 . . . . 441 51380 Melee . | . . . . . . . . . . . . . . . . . . . . . . . . . . Ramming 559 | . 40 . . . . . . . 56 83 . . . . . . . . . 11 . . 109 55 205 Kinetic 1963 | . . . . . . . 398 . . . . . . . . . . . . . . . . 6 1559 Thermal 42784 | 44 322 1115 . . 3107 2576 825 610 2567 3654 . 584 422 829 1266 69 576 1125 660 210 745 . 4170 2412 14896 Explosive 68370 | . 484 263 . . . 702 . . 1107 1022 . 442 . 1591 . . 2556 8832 585 . . . . 220 50566 Electromagnetic 6058 | . . . . . 513 . . . . 1087 313 . . . 96 . . . . . . . . . 4049 Impact . | . . . . . . . . . . . . . . . . . . . . . . . . . . Slashing . | . . . . . . . . . . . . . . . . . . . . . . . . . . Piercing . | . . . . . . . . . . . . . . . . . . . . . . . . . . Entropic 690 | . . . . . . . . . . . . . . . . . . 690 . . . . . . . Highest Corruption 16 | . . . . . 3 3 . . 7 7 7 . . . 3 3 3 1 1 . 3 3 . 6 16 Average Corruption 5 | . . . . . 1 2 . . 5 3 5 . . . 2 3 2 1 1 . 2 3 . 5 10 Corruption Purged 32 | . . . . . 3 3 . . . . 7 . . . . . 3 . . . . . . . 16 Corruption Blocked 2 | . . . . . . . . . . . . . . . . . . . . . . . . 2 . Effects 284 | . . . . . 2 20 . . 9 34 6 . . . 6 13 15 3 8 . 6 6 . 15 141 Message Errors 64 | . . . . . 1 6 . . 2 6 1 . . . 1 5 5 1 . . 1 2 . 2 31 Matter Fused 68 | . . . . . . 6 . . 2 8 4 . . . 3 3 3 . 1 . 3 2 . 1 32 Heat Flow Errors 34 | . . . . . 1 1 . . . 6 . . . . . . 2 1 . . 1 . . 5 17 Energy Discharges 32 | . . . . . . 1 . . 4 4 . . . . . 3 1 . 1 . . 2 . 1 15 Parts Rejected 4 | . . . . . . . . . . . . . . . . . . . . . . . . 1 3 Parts Fused 2 | . . . . . . . . . . . . . . . . . . . . . . . . . 2 Data Loss (minor) 32 | . . . . . . 2 . . . . 1 . . . 1 2 1 . 3 . 1 . . 1 20 Data Loss (major) 16 | . . . . . . 2 . . . 3 . . . . 1 . . 1 1 . . . . 2 6 Misfires 7 | . . . . . . 1 . . . 2 . . . . . . 1 . 1 . . . . . 2 Alerts 7 | . . . . . . 1 . . . . . . . . . . 2 . 1 . . . . 1 2 Misdirections 3 | . . . . . . . . . . . . . . . . . . . . . . . . . 3 Weapon Failures 15 | . . . . . . . . . 1 5 . . . . . . . . . . . . . 1 8 Overload Shots 8 | . . . . . 2 . . . . . . . . . . . . 3 . . . . . . 3 Overflow Damage 7309 | . 7 1 . . 121 40 . . 41 248 3 61 . 72 22 . 78 177 123 . . . 7 241 6067 Projectiles 1816 | . 6 . . . 121 5 . . 17 79 3 . . . 22 . 22 17 20 . . . 7 157 1340 Explosions 5429 | . 1 1 . . . 35 . . 17 169 . 61 . 72 . . 56 160 103 . . . . 84 4670 Melee 64 | . . . . . . . . . 7 . . . . . . . . . . . . . . . 57 Knockbacks 5 | . . . . . . . . . . . . . . . . . . . . 1 . . 1 . 3 Impact 3 | . . . . . . . . . . . . . . . . . . . . 1 . . 1 . 1 Kinetic 2 | . . . . . . . . . . . . . . . . . . . . . . . . . 2 Secondary . | . . . . . . . . . . . . . . . . . . . . . . . . . . Self-Inflicted Damage 996 | . . . . . 220 69 . . 99 57 . . . . 72 . 37 87 . . . . . 147 208 Shots 20 | . . . . . 4 3 . . 1 1 . . . . 2 . 1 2 . . . . . 2 4 Rammed 20 | . 9 . . . . . . . 4 7 . . . . . . . . . . . . . . . Targets Rammed 37 | . 10 . . . . . . . 4 7 . . . . . . . . . 1 . . 6 4 5 Kicked 16 | . . . . . . . . . . . . . . . . . . . . 1 . . 6 4 5 Crushed 1 | . 1 . . . . . . . . . . . . . . . . . . . . . . . . Highest Temperature 534 | 36 259 54 . . 228 94 276 11 308 318 . 208 232 294 195 252 291 210 199 205 268 227 360 534 216 Average Temperature 90 | 18 103 24 . . 81 23 124 6 68 113 . 83 103 132 61 97 89 72 120 78 121 73 106 114 55 Received Heat Transfer 4896 | . 102 117 . . 351 366 49 45 333 597 36 57 . 301 153 . 141 371 . 45 . . 272 995 565 Effects 14 | . 2 . . . . . . . 3 . . . . . . . . . . . 1 1 3 2 2 Energy Bleed 5 | . . . . . . . . . . . . . . . . . . . . . 1 1 1 2 . Interference 9 | . 2 . . . . . . . 3 . . . . . . . . . . . . . 2 . 2 Siege Activations 13 | . . . . . . . 1 1 5 4 . 1 . . . . . . 1 . . . . . . Total Turns 161 | . . . . . . . 3 6 48 68 . 6 . . . . . . 30 . . . . . . Longest Duration 30 | . . . . . . . 3 6 20 27 . 6 . . . . . . 30 . . . . . . Martial Activations . | . . . . . . . . . . . . . . . . . . . . . . . . . . Shielding Activations . | . . . . . . . . . . . . . . . . . . . . . . . . . . Robots Disrupted 4 | . . . . . . . . . . . . . . . 1 . . . . . . . . . 3 Combat Hostiles 3 | . . . . . . . . . . . . . . . 1 . . . . . . . . . 2 Robots Corrupted 24 | . . . . . 2 . . . 1 5 1 . . . . . . . . . . . . . 15 Combat Hostiles 22 | . . . . . 2 . . . . 5 1 . . . . . . . . . . . . . 14 Parts Fried 47 | . . . . . 2 . . . . 7 4 . . . . . . . . . . . . . 34 Impact Corruptions 2 | . . . . . . . . . 1 . . . . . . . . . . . . . . . 1 Robots Melted 32 | . . . . . 2 3 . . 2 3 . 1 . . 1 . 1 2 . 1 1 . . 1 14 Combat Hostiles 29 | . . . . . 2 2 . . 2 3 . 1 . . 1 . 1 2 . . 1 . . 1 13 Parts Melted 104 | . . . . . 13 7 . . 16 23 . 1 . 1 6 . . 2 1 . 2 . 4 7 21 Heat Transferred 44169 | 100 608 1375 . . 4010 3950 870 777 3009 4950 . 900 481 1036 1605 87 592 1476 703 222 592 . 3700 1918 11208 Parts Sabotaged 1 | . . . . . . . . . . . . . . . . . . . . . . . . . 1 Parts Stolen . | . . . . . . . . . . . . . . . . . . . . . . . . . . Parts Stripped . | . . . . . . . . . . . . . . . . . . . . . . . . . . Power Chain Reactions 1 | . . . . . . . . . . 1 . . . . . . . . . . . . . . . Alert | -11 -10 -10 -9 -9 -6 -6 -6 -6 -6 -5 -5 -5 -5 -4 -4 -4 -4 -4 -3 -3 -3 -3 -2 -2 -2 ------- Run | Yrd Mat Sub Rec Scr Fac Ext Cet Arc Hub Fac Upp Upp Zhi Pro Fac Upp Upp War Pro Res Arm Lab Res Tes Frg Maximum Alert Level 5 | . 1 . . . 2 2 2 1 4 4 . . . . . . . . . . . . 1 2 5 Low Security (%) 53 | 100 97 . 100 . 67 52 . 99 3 45 . . . . 100 . . . . 100 100 . 74 22 . Level 1 14 | . 2 . . . 20 32 94 . . 10 . . . . . . . . . . . . 25 54 7 Level 2 7 | . . . . . 11 15 5 . 11 25 . . . . . . . . . . . . . 22 6 Level 3 7 | . . . . . . . . . 68 14 . . . . . . . . . . . . . . 12 Level 4 6 | . . . . . . . . . 16 4 . . . . . . . . . . . . . . 23 Level 5 10 | . . . . . . . . . . . . . . . . . . . . . . . . . 49 High Security . | . . . . . . . . . . . . . . . . . . . . . . . . . . Max Security . | . . . . . . . . . . . . . . . . . . . . . . . . . . Peak Influence 6266 | 5 208 . 134 . 466 510 415 206 1141 1199 . . . . 164 . . . . 47 52 . 326 445 6266 Initial 544 | . . . 134 . . 212 266 114 . 544 . . . . 11 . . . . . 4 . . 72 228 Average 679 | . 61 . 107 . 156 221 336 24 877 390 . . . . 18 . . . . 6 14 . 117 292 2477 Influence Increases 18532 | 10 513 335 74 . 1012 1158 382 202 1860 1635 70 265 15 325 417 . 365 910 140 133 166 . 870 784 6891 Destroy 0b10 Robot/C 10560 | . 280 160 . . 520 600 160 80 700 720 60 200 . 280 180 . 340 880 120 . 100 . 440 300 4440 Destroy 0b10 Robot/NC 550 | 10 20 . . . 35 45 10 5 65 55 . 5 15 . . . 5 15 . 10 5 . 30 15 205 Destroy Leader 1638 | . 62 10 . . 166 54 . . 148 194 10 30 . 30 50 . 20 . 20 2 22 . 104 40 676 Allied During Kill 1023 | . . . . . 16 243 170 85 509 . . . . . . . . . . . . . . . . Successful Hack 344 | . 10 . 14 . 8 30 . . . 87 . . . . 41 . . . . 50 . . 23 30 51 Select Force Hacks 170 | . 60 . 60 . . . . . 50 . . . . . . . . . . . . . . . . Disable Machine 1335 | . 45 . . . 150 135 15 30 150 120 . . . . 45 . . . . 30 15 . 45 120 435 Anti-Garrison Action 200 | . . . . . . . . . . . . . . . . . . . . . . . . . 200 Destroy Structure 2037 | . 36 . . . 72 51 27 2 193 264 . . . . 56 . . . . 26 24 . 213 264 809 Partial Spotted 45 | . . . . . . . . . 15 15 . . . . . . . . . . . . 15 . . Lose Combat Pursuer 630 | . . 165 . . 45 . . . 30 180 . 30 . 15 45 . . 15 . 15 . . . 15 75 Influence Decreases 12272 | 10 361 206 257 98 578 1115 573 488 748 1554 1046 482 15 307 435 . 288 309 818 124 147 28 741 507 1037 Entered New Map 3006 | . . 74 147 98 . 222 211 172 . 568 442 42 . . 7 . . 77 678 . 5 28 . 57 178 Time Decay 7185 | 10 361 122 110 . 337 543 302 236 398 626 604 440 15 287 268 . 288 212 140 124 142 . 411 440 769 Lost Part 400 | . . 10 . . 90 60 . . 20 40 . . . 20 10 . . 20 . . . . 30 10 90 Lost Ally 500 | . . . . . 20 140 60 80 180 20 . . . . . . . . . . . . . . . Purge Threat 1181 | . . . . . 131 150 . . 150 300 . . . . 150 . . . . . . . 300 . . Squads Dispatched 77 | . 3 . . . 10 2 . . 6 14 . . . . 6 . 1 . . 5 1 . 4 3 22 Investigation 25 | . 2 . . . 5 1 . . 1 6 . . . . 5 . . . . 1 . . . . 4 Extermination 20 | . . . . . 2 . . . 1 3 . . . . 1 . . . . . 1 . 4 2 6 Reinforcement 20 | . 1 . . . 2 1 . . 1 3 . . . . . . . . . 4 . . . 1 7 Assault 11 | . . . . . . . . . 3 2 . . . . . . 1 . . . . . . . 5 Garrison 1 | . . . . . 1 . . . . . . . . . . . . . . . . . . . . Intercept . | . . . . . . . . . . . . . . . . . . . . . . . . . . Searches Triggered . | . . . . . . . . . . . . . . . . . . . . . . . . . . Construction Impeded 3 | . . . . . 1 . . . . 1 . . . . . . . . . . . . . . 1 Haulers Reinforced 2 | . . . . . . . . . . . . . . . . . . . . 2 . . . . . Active Scanning Responses . | . . . . . . . . . . . . . . . . . . . . . . . . . . Cargo Convoy Interrupts . | . . . . . . . . . . . . . . . . . . . . . . . . . . Stealth | -11 -10 -10 -9 -9 -6 -6 -6 -6 -6 -5 -5 -5 -5 -4 -4 -4 -4 -4 -3 -3 -3 -3 -2 -2 -2 --------- Run | Yrd Mat Sub Rec Scr Fac Ext Cet Arc Hub Fac Upp Upp Zhi Pro Fac Upp Upp War Pro Res Arm Lab Res Tes Frg Distress Signals 32 | . 1 . . . 2 2 3 . 4 5 . . . . 1 . . 1 . 4 . . 1 1 7 Communications Jammed 87 | . . . . . . . . . . 1 . . . . . . . . . . 2 . 67 16 1 Distress Signals 87 | . . . . . . . . . . 1 . . . . . . . . . . 2 . 67 16 1 Times Spotted 760 | . 31 19 . . 29 36 9 10 44 52 3 10 . 14 14 . 14 83 5 15 11 . 38 25 298 Peak Tracking Total 18 | . 3 6 . . 5 5 5 3 7 11 3 5 . 5 5 . 5 18 4 7 2 . 5 4 14 Tactical Retreats 28 | . . 3 . . 3 . . . 2 6 . 2 . 1 3 . . 1 . 1 . . . 1 5 Traps | -11 -10 -10 -9 -9 -6 -6 -6 -6 -6 -5 -5 -5 -5 -4 -4 -4 -4 -4 -3 -3 -3 -3 -2 -2 -2 ------- Run | Yrd Mat Sub Rec Scr Fac Ext Cet Arc Hub Fac Upp Upp Zhi Pro Fac Upp Upp War Pro Res Arm Lab Res Tes Frg Traps Triggered 14 | . 1 3 . . 3 2 . . . 2 . . . . . . . . . . . . . . 3 Indirectly . | . . . . . . . . . . . . . . . . . . . . . . . . . . Trap Hack Attempts . | . . . . . . . . . . . . . . . . . . . . . . . . . . Triggered . | . . . . . . . . . . . . . . . . . . . . . . . . . . Disarmed . | . . . . . . . . . . . . . . . . . . . . . . . . . . Reprogrammed . | . . . . . . . . . . . . . . . . . . . . . . . . . . Reused . | . . . . . . . . . . . . . . . . . . . . . . . . . . Traps Extracted . | . . . . . . . . . . . . . . . . . . . . . . . . . . Installed . | . . . . . . . . . . . . . . . . . . . . . . . . . . Triggered . | . . . . . . . . . . . . . . . . . . . . . . . . . . Machines | -11 -10 -10 -9 -9 -6 -6 -6 -6 -6 -5 -5 -5 -5 -4 -4 -4 -4 -4 -3 -3 -3 -3 -2 -2 -2 ---------- Run | Yrd Mat Sub Rec Scr Fac Ext Cet Arc Hub Fac Upp Upp Zhi Pro Fac Upp Upp War Pro Res Arm Lab Res Tes Frg Machines Disabled 110 | . 3 4 . . 10 13 1 2 10 8 . 1 . . 3 . 1 2 . 2 1 1 3 10 35 Max in Single Turn 6 | . 2 3 . . 4 1 1 1 2 2 . 1 . . 2 . 1 1 . 1 1 1 1 2 6 Garrison Access 5 | . . . . . 1 . . . 1 . . . . . 1 . . . . . . . . 1 1 Network Hub 4 | . . . . . . . . . 4 . . . . . . . . . . . . . . . . Machines Repaired . | . . . . . . . . . . . . . . . . . . . . . . . . . . Machines Dismantled 10 | . . . . . . 9 1 . . . . . . . . . . . . . . . . . . Machines Sabotaged 1 | . . . . . . . . . 1 . . . . . . . . . . . . . . . . Overloaded Fab Kills . | . . . . . . . . . . . . . . . . . . . . . . . . . . Hacking | -11 -10 -10 -9 -9 -6 -6 -6 -6 -6 -5 -5 -5 -5 -4 -4 -4 -4 -4 -3 -3 -3 -3 -2 -2 -2 --------- Run | Yrd Mat Sub Rec Scr Fac Ext Cet Arc Hub Fac Upp Upp Zhi Pro Fac Upp Upp War Pro Res Arm Lab Res Tes Frg Machines Accessed 101 | . 8 . 5 6 10 9 . . 7 15 . 1 8 . 11 1 . 1 . 2 1 . 3 8 5 Terminals 50 | . 6 . 3 . 4 9 . . 7 6 . . . . 3 . . . . 2 1 . 2 5 2 Fabricators 1 | . . . . . . . . . . . . . . . 1 . . . . . . . . . . Repair Stations 3 | . . . . . . . . . . 2 . . . . . . . . . . . . 1 . . Recycling Units 22 | . 2 . 2 . 5 . . . . 6 . . . . 5 . . . . . . . . . 2 Scanalyzers 3 | . . . . . . . . . . . . . . . 1 . . . . . . . . 2 . Garrison Access 5 | . . . . . 1 . . . . 1 . . . . 1 . . . . . . . . 1 1 Total Hacks 354 | . 15 . 8 53 19 17 . . 12 53 . 1 47 . 32 1 . 1 . 22 1 . 29 31 12 Successful 208 | . 9 . 3 53 14 5 . . 3 24 . 1 47 . 19 1 . 1 . 5 . . 9 9 5 Failed 146 | . 6 . 5 . 5 12 . . 9 29 . . . . 13 . . . . 17 1 . 20 22 7 Catastrophic 38 | . 1 . 1 . 1 3 . . 3 5 . . . . 4 . . . . 5 1 . 6 5 3 Database Lockouts . | . . . . . . . . . . . . . . . . . . . . . . . . . . Manual 140 | . 15 . 3 . 12 8 1 . 5 25 . . . . 20 . . . . 20 . . 13 7 11 Terminals 171 | . 13 . 6 . 11 17 . . 12 35 . . . . 16 . . . . 22 1 . 19 16 3 Fabricators 2 | . . . . . . . . . . . . . . . 2 . . . . . . . . . . Repair Stations 14 | . . . . . . . . . . 4 . . . . . . . . . . . . 10 . . Recycling Units 32 | . 2 . 2 . 6 . . . . 8 . . . . 8 . . . . . . . . . 6 Scanalyzers 12 | . . . . . . . . . . . . . . . 2 . . . . . . . . 10 . Garrison Access 20 | . . . . . 2 . . . . 6 . . . . 4 . . . . . . . . 5 3 Terminal Hacks 139 | . 1 . 1 53 3 2 . . 2 10 . 1 47 . 6 1 . 1 . 2 . . 6 2 1 Record 81 | . . . . 45 . . . . . . . 1 35 . . . . . . . . . . . . Part Schematic 6 | . . . . . . . . . . 1 . . 4 . . . . . . 1 . . . . . Robot Analysis 12 | . 1 . . 7 . . . . . . . . 4 . . . . . . . . . . . . Prototype ID Bank 6 | . . . . . . 1 . . . . . . 4 . 1 . . . . . . . . . . Open Door 4 | . . . . . 1 . . . . . . . . . . 1 . 1 . . . . . 1 . Branch Access Points 3 | . . . . . . . . . . 1 . . . . 1 . . . . . . . 1 . . Terminal Index 1 | . . . . . . . . . . 1 . . . . . . . . . . . . . . . Alert Level 5 | . . . . . . . . . . 3 . . . . 1 . . . . . . . 1 . . Unreport Threat 8 | . . . . . 1 1 . . 1 2 . . . . 1 . . . . . . . 2 . . Locate Traps 1 | . . . . . 1 . . . . . . . . . . . . . . . . . . . . Surveillance Status 1 | . . . . . . . . . . . . . . . . . . . . . . . 1 . . Recall Investigation 1 | . . . . . . . . . . 1 . . . . . . . . . . . . . . . Recall Extermination 1 | . . . . . . . . . . . . . . . 1 . . . . . . . . . . Zone Layout 7 | . . . 1 . . . . . 1 1 . . . . 1 . . . . 1 . . 1 1 . Proto ID Catalog 2 | . . . . 1 . . . . . . . . . . . . . . . . . . . . 1 Fabricator Hacks 1 | . . . . . . . . . . . . . . . 1 . . . . . . . . . . Build 1 | . . . . . . . . . . . . . . . 1 . . . . . . . . . . Repair Station Hacks 5 | . . . . . . . . . . 4 . . . . . . . . . . . . 1 . . Scan Component 3 | . . . . . . . . . . 2 . . . . . . . . . . . . 1 . . Repair 2 | . . . . . . . . . . 2 . . . . . . . . . . . . . . . Recycling Unit Hacks . | . . . . . . . . . . . . . . . . . . . . . . . . . . Scanalyzer 4 | . . . . . . . . . . . . . . . 2 . . . . . . . . 2 . Insert Component 4 | . . . . . . . . . . . . . . . 2 . . . . . . . . 2 . Garrison Access Hacks 3 | . . . . . 1 . . . . . . . . . 1 . . . . . . . . 1 . Seal Access 3 | . . . . . 1 . . . . . . . . . 1 . . . . . . . . 1 . Unauthorized Hacks 56 | . 8 . 2 . 10 3 . . 1 10 . . . . 9 . . . . 3 . . 2 4 4 Terminals 34 | . 6 . . . 5 3 . . 1 4 . . . . 4 . . . . 3 . . 2 4 2 Track 9 | . . . . . 2 1 . . . 1 . . . . 2 . . . . 1 . . 1 . 1 Assimilate 2 | . . . . . . . . . . . . . . . . . . . . . . . . 2 . Botnet 10 | . . . . . 2 2 . . . 2 . . . . 1 . . . . 1 . . 1 1 . Disrupt 1 | . . . . . . . . . . . . . . . . . . . . . . . . 1 . Operators 6 | . 1 . . . 1 . . . . 1 . . . . 1 . . . . 1 . . . . 1 Skim 5 | . 5 . . . . . . . . . . . . . . . . . . . . . . . . Sabotage 1 | . . . . . . . . . 1 . . . . . . . . . . . . . . . . Fabricators . | . . . . . . . . . . . . . . . . . . . . . . . . . . Repair Stations . | . . . . . . . . . . . . . . . . . . . . . . . . . . Recycling Units 21 | . 2 . 2 . 5 . . . . 6 . . . . 5 . . . . . . . . . 1 Tunnel 4 | . 2 . 2 . . . . . . . . . . . . . . . . . . . . . . Fedlink 17 | . . . . . 5 . . . . 6 . . . . 5 . . . . . . . . . 1 Scanalyzers . | . . . . . . . . . . . . . . . . . . . . . . . . . . Garrison Access 1 | . . . . . . . . . . . . . . . . . . . . . . . . . 1 Jam 1 | . . . . . . . . . . . . . . . . . . . . . . . . . 1 Data Cores Recovered 1 | . 1 . . . . . . . . . . . . . . . . . . . . . . . . Used . | . . . . . . . . . . . . . . . . . . . . . . . . . . Hacking Detections 53 | . 6 . 3 . 3 8 . . 6 9 . . . . 4 . . . . 2 1 . 3 4 4 Full Trace Events 1 | . . . . . . . . . . . . . . . . . . . . . . . . . 1 Feedback Events . | . . . . . . . . . . . . . . . . . . . . . . . . . . Feedback Blocked . | . . . . . . . . . . . . . . . . . . . . . . . . . . Robot Schematics Acquired . | . . . . . . . . . . . . . . . . . . . . . . . . . . Robots Built . | . . . . . . . . . . . . . . . . . . . . . . . . . . Authchips . | . . . . . . . . . . . . . . . . . . . . . . . . . . Time . | . . . . . . . . . . . . . . . . . . . . . . . . . . Total Robot Build Rating . | . . . . . . . . . . . . . . . . . . . . . . . . . . Part Schematics Acquired 6 | . . . . . . . . . . 1 . . 4 . . . . . . 1 . . . . . Parts Built 2 | . . . . . . . . . . . . . . . 2 . . . . . . . . . . Authchips . | . . . . . . . . . . . . . . . . . . . . . . . . . . Time 46 | . . . . . . . . . . . . . . . 46 . . . . . . . . . . Total Part Build Rating 18 | . . . . . . . . . . . . . . . 18 . . . . . . . . . . Parts Repaired 2 | . . . . . . . . . . 2 . . . . . . . . . . . . . . . Time 90 | . . . . . . . . . . 90 . . . . . . . . . . . . . . . Parts Recycled . | . . . . . . . . . . . . . . . . . . . . . . . . . . Recycled Matter . | . . . . . . . . . . . . . . . . . . . . . . . . . . Retrieved Matter . | . . . . . . . . . . . . . . . . . . . . . . . . . . Retrieved Components . | . . . . . . . . . . . . . . . . . . . . . . . . . . Parts Scanalyzed . | . . . . . . . . . . . . . . . . . . . . . . . . . . Part Schematics Acquired . | . . . . . . . . . . . . . . . . . . . . . . . . . . Parts Damaged . | . . . . . . . . . . . . . . . . . . . . . . . . . . Bothacking | -11 -10 -10 -9 -9 -6 -6 -6 -6 -6 -5 -5 -5 -5 -4 -4 -4 -4 -4 -3 -3 -3 -3 -2 -2 -2 ------------ Run | Yrd Mat Sub Rec Scr Fac Ext Cet Arc Hub Fac Upp Upp Zhi Pro Fac Upp Upp War Pro Res Arm Lab Res Tes Frg Used RIF Installer . | . . . . . . . . . . . . . . . . . . . . . . . . . . Robots Hacked . | . . . . . . . . . . . . . . . . . . . . . . . . . . Non-combat . | . . . . . . . . . . . . . . . . . . . . . . . . . . Combat . | . . . . . . . . . . . . . . . . . . . . . . . . . . Robot Hacks Applied . | . . . . . . . . . . . . . . . . . . . . . . . . . . Relay Couplers Released 4 | . . . . . . . . . 2 . . . . . . . . . . . . . . 2 . Machine Destruction 4 | . . . . . . . . . 2 . . . . . . . . . . . . . . 2 . Fabnet Peak Effective % . | . . . . . . . . . . . . . . . . . . . . . . . . . . Robots Rewired 15 | . . . . . . 14 . . . . . . . . . . 1 . . . . . . . . Allies Hacked . | . . . . . . . . . . . . . . . . . . . . . . . . . . Hacks Repelled . | . . . . . . . . . . . . . . . . . . . . . . . . . . Allies | -11 -10 -10 -9 -9 -6 -6 -6 -6 -6 -5 -5 -5 -5 -4 -4 -4 -4 -4 -3 -3 -3 -3 -2 -2 -2 -------- Run | Yrd Mat Sub Rec Scr Fac Ext Cet Arc Hub Fac Upp Upp Zhi Pro Fac Upp Upp War Pro Res Arm Lab Res Tes Frg Total Allies 33 | . . . . 1 . 26 5 . . . . . . . . . 1 . . . . . . . . Largest Group 20 | . . . . 1 1 17 20 17 12 . . . . . . . 1 . . . . . . . . Highest-Rated Group 1051 | . . . . 69 69 658 1051 780 637 . . . . . . . 48 . . . . . . . . Highest-Rated Ally 159 | . . . . 69 69 159 159 96 96 . . . . . . . 48 . . . . . . . . Total Orders 27 | . . . . 2 . . 5 . 5 2 . . . . . . . 6 . 7 . . . . . STAY 7 | . . . . 1 . . 2 . 4 . . . . . . . . . . . . . . . . FOLLOW 5 | . . . . 1 . . 3 . 1 . . . . . . . . . . . . . . . . EXPLORE 9 | . . . . . . . . . . 2 . . . . . . . 3 . 4 . . . . . RETURN 6 | . . . . . . . . . . . . . . . . . . 3 . 3 . . . . . Ally Attacks 362 | . . . . . 19 96 62 37 146 . . . . . . . 2 . . . . . . . . Total Damage 8800 | . . . . . 761 1873 1912 696 3495 . . . . . . . 63 . . . . . . . . Kills 66 | . . . . . 8 17 9 5 27 . . . . . . . . . . . . . . . . Allies Corrupted 3 | . . . . . . . . . 2 1 . . . . . . . . . . . . . . . Allies Melted 3 | . . . . . 1 . . . . . . . . . . . . 1 . . . . . . 1 Intel | -11 -10 -10 -9 -9 -6 -6 -6 -6 -6 -5 -5 -5 -5 -4 -4 -4 -4 -4 -3 -3 -3 -3 -2 -2 -2 ------- Run | Yrd Mat Sub Rec Scr Fac Ext Cet Arc Hub Fac Upp Upp Zhi Pro Fac Upp Upp War Pro Res Arm Lab Res Tes Frg Active Infowar (turns) 31168 | 16 854 2591 . 3192 1009 . . . 361 1914 1649 1951 256 1917 987 951 1983 1176 1642 823 456 517 1475 1081 4367 Optics 11335 | . . . . . . . . . . . . . . . . . . 974 1642 823 456 517 1475 1081 4367 Sensors 17245 | . . . . . 384 . . . 184 1657 1649 1901 256 1917 919 951 1983 490 1564 785 263 64 975 333 970 Terrain 1780 | 16 771 . . 993 . . . . . . . . . . . . . . . . . . . . . Structural 5554 | . . . . 2211 252 . . . . 1143 . 50 . . 515 37 . . . 212 126 17 567 105 319 Seismic 3681 | . 83 2591 . . 1007 . . . . . . . . . . . . . . . . . . . . Machine Analysis 710 | . . . . . . . . . 177 533 . . . . . . . . . . . . . . . Cloaking 1053 | . . . . . . . . . . . . . . . . . . . . . . . 693 71 289 Jamming 3796 | . . . . . . . . . . 430 . . . . 68 . . . 887 361 99 . 1049 245 657 Robot Analysis Total 12 | . 1 . . 7 . . . . . . . . 4 . . . . . . . . . . . . Derelict Logs Recovered 14 | . . 2 . 4 . . . . . . 2 2 . 2 . . 2 . . . . . . . . Drone Launches 9 | . . . . . . . . . . 2 . . . . . . . 3 . 4 . . . . . Drone Recoveries 4 | . . . . . . . . . . . . . . . . . . 3 . 1 . . . . . Exploration | -11 -10 -10 -9 -9 -6 -6 -6 -6 -6 -5 -5 -5 -5 -4 -4 -4 -4 -4 -3 -3 -3 -3 -2 -2 -2 ------------- Run | Yrd Mat Sub Rec Scr Fac Ext Cet Arc Hub Fac Upp Upp Zhi Pro Fac Upp Upp War Pro Res Arm Lab Res Tes Frg Turns Passed 41133 | 135 2011 3018 227 4066 1141 1803 663 2183 951 2140 1956 2117 348 2271 1173 951 2299 1320 1642 823 456 517 1475 1081 4366 Spaces Moved 20465 | 70 824 1273 198 3314 539 705 242 183 317 983 1075 1241 179 1072 580 571 1253 652 794 428 256 249 767 684 2016 Core 323 | 3 . . . 160 . . . . . . . . . . . . . . . . . 160 . . . Treads 11437 | 67 824 806 . 61 37 433 242 183 317 983 1075 1241 179 1072 412 571 1253 652 794 235 . . . . . Legs 3800 | . . . . . . . . . . . . . . . . . . . . . 244 89 767 684 2016 Wheels 4905 | . . 467 198 3093 502 272 . . . . . . . . 168 . . . . 193 12 . . . . Hover . | . . . . . . . . . . . . . . . . . . . . . . . . . . Flight . | . . . . . . . . . . . . . . . . . . . . . . . . . . Fastest Speed 50 | 50 160 115 115 50 120 135 156 160 160 160 160 160 160 160 160 160 160 160 168 168 120 50 115 110 98 Average Speed 153 | 155 192 207 115 116 139 168 162 160 175 160 160 160 160 199 167 160 160 162 194 171 124 75 118 118 126 Slowest Speed 700 | 160 240 320 115 700 240 235 240 160 240 160 160 160 160 246 246 165 160 250 250 175 190 121 185 186 250 Overloaded Moves . | . . . . . . . . . . . . . . . . . . . . . . . . . . Propulsion Burnouts . | . . . . . . . . . . . . . . . . . . . . . . . . . . Robots Hopped . | . . . . . . . . . . . . . . . . . . . . . . . . . . Potential Cave-ins 12 | . . . . . . . . . . . . . . . . . . 3 . . . . . . 9 Cave-ins Triggered 1 | . . . . . . . . . . . . . . . . . . . . . . . . . 1 Teleports 2 | . . . . . . . . . . . . . . . . . . . . . 1 . . . 1 Exploration Rate (%) 63 | 4 98 83 36 95 19 83 73 85 45 34 98 86 62 87 17 70 92 97 95 19 13 94 29 84 65 Regions Visited 25 Branch Regions 19 Pre-discovered Areas 17 | . 3 1 2 6 1 . . . . . . 1 3 . . . . . . . . . . . . Known Exits Taken 18 | . . . . 1 1 . . . 1 1 1 1 1 1 1 1 1 1 1 1 1 1 1 1 . Unknown Exits Taken 7 | 1 1 1 1 . . 1 1 1 . . . . . . . . . . . . . . . . . Scrap Searched 26 | . . 5 . 8 . . . . . . 2 4 . 1 . 1 4 . 1 . . . . . . Spaces Dug 433 | . . . . . 20 . . . 13 52 . 14 . 32 24 3 48 22 22 9 4 19 39 14 98 Terrain Destroyed 2117 | . 41 7 . . 75 63 7 . 245 147 . 61 . 155 27 7 204 206 80 13 11 19 74 97 578 Melee . | . . . . . . . . . . . . . . . . . . . . . . . . . . Projectile 577 | . . . . . 29 10 7 . 38 75 . 28 . 3 27 7 24 14 22 13 11 19 74 39 137 AOE 1529 | . 41 7 . . 46 53 . . 207 72 . 33 . 152 . . 180 192 58 . . . . 58 430 Terrain Rammed . | . . . . . . . . . . . . . . . . . . . . . . . . . . Walls Destroyed . | . . . . . . . . . . . . . . . . . . . . . . . . . . Machines Disabled . | . . . . . . . . . . . . . . . . . . . . . . . . . . Actions | -11 -10 -10 -9 -9 -6 -6 -6 -6 -6 -5 -5 -5 -5 -4 -4 -4 -4 -4 -3 -3 -3 -3 -2 -2 -2 --------- Run | Yrd Mat Sub Rec Scr Fac Ext Cet Arc Hub Fac Upp Upp Zhi Pro Fac Upp Upp War Pro Res Arm Lab Res Tes Frg Total 27972 | 87 1197 1503 197 3530 805 1071 437 2047 570 1354 1302 1321 225 1139 709 596 1482 811 848 498 374 581 1134 939 3215 Wait 3862 | . 295 117 . 71 84 45 64 1849 130 113 201 24 13 . 25 . 165 16 14 6 19 213 147 29 222 Move 20439 | 69 823 1272 197 3313 538 704 241 182 316 982 1074 1240 178 1071 579 570 1252 651 793 427 255 248 766 683 2015 Hop . | . . . . . . . . . . . . . . . . . . . . . . . . . . Pick Up 508 | 8 17 9 . 66 36 24 18 . 15 35 5 6 7 2 16 4 1 22 3 13 14 38 24 21 104 Fast Attach 121 | 6 4 1 . 7 6 8 15 . 2 4 . 2 4 1 3 3 1 4 . 6 11 4 2 6 21 Attach 190 | 1 1 3 . 3 19 6 8 . 4 23 3 4 . 7 9 1 1 13 4 7 2 8 10 10 43 Detach 36 | . . . . . 1 . . . . 5 . 1 . 4 4 . . . . 1 . 4 . 6 10 Swap 588 | . 11 36 . 11 16 26 16 4 18 33 4 11 5 13 18 4 17 19 7 8 21 . 49 54 187 Drop 525 | . 13 6 . 59 27 24 35 . 10 28 5 7 10 3 12 9 3 19 3 15 26 41 21 28 121 Fire 1438 | 3 23 59 . . 78 51 32 12 71 124 10 26 8 38 43 5 36 67 24 14 26 25 109 98 456 Melee . | . . . . . . . . . . . . . . . . . . . . . . . . . . Ram . | . . . . . . . . . . . . . . . . . . . . . . . . . . Kick 16 | . . . . . . . . . . . . . . . . . . . . 1 . . 6 4 5 Crush 21 | . 10 . . . . . . . 4 7 . . . . . . . . . . . . . . . Escape Stasis 9 | . . . . . . 8 . . . . . . . . . . . . . . . . . . 1 Rewire 109 | . . . . . . 103 . . . . . . . . . . 6 . . . . . . . . Trap . | . . . . . . . . . . . . . . . . . . . . . . . . . . Miscellaneous 110 | . . . . . . 72 8 . . . . . . . . . . . . . . . . . 30 Route ------- -11/Scrapyard -10/Materials (discovered 6 exits: [*Mat x3] / [*Min x2] / [*Sub]) -10/Subcaves (discovered 3 exits: *Mat x2 / *Rec) -9/Recycling -9/Scraptown (discovered 2 exits: *Fac x2) -6/Factory (discovered 8 exits: *Fac x4 / *Low x2 / *Ext x2) -6/Extension (discovered 2 exits: *Fac / *Cet) -6/Cetus (discovered 2 exits: *Fac / *Arc) -6/Archives (discovered 2 exits: *Fac / *Hub) -6/Hub_04(d) (discovered 2 exits: *Fac x2) -5/Factory (discovered 2 exits: *Upp x2) -5/Upper Caves -5/Upper Caves (discovered 2 exits: *Fac / *Zhi) -5/Zhirov -4/Proximity Caves -4/Factory (discovered 2 exits: *Upp x2) -4/Upper Caves -4/Upper Caves -4/Warlord -3/Proximity Caves -3/Research (discovered 5 exits: Res x2 / *Arm / Qua x2) -3/Armory -3/Lab -2/Research (discovered 4 exits: Acc x2 / *Tes x2) -2/Testing (discovered 2 exits: [*Sec] / *Frg) -2/Protoforge 0bPrime History --------- Turn | Location | Event 15 | -11/Scrapyard | Discovered new exit (range 16) 136 | -11/Scrapyard | Entered Materials 233 | -10/Materials | Discovered new exit (range 6) 311 | -10/Materials | Build established: Mutant 770 | -10/Materials | Discovered new exit (range 6) 1152 | -10/Materials | Discovered new exit (range 15) 1199 | -10/Materials | Discovered new exit (range 6) 1709 | -10/Materials | Learned 2 Storage zone layouts 1783 | -10/Materials | Learned 2 Storage zone layouts 1783 | -10/Materials | Discovered new exit (range 11) 1845 | -10/Materials | Learned location of Mines (-10) 1898 | -10/Materials | Learned Storage trap positions 1910 | -10/Materials | Discovered new exit (range 11) 1942 | -10/Materials | Learned Storage stockpile data 1975 | -10/Materials | Learned Storage emergency access door positions 2147 | -10/Materials | Entered Subcaves 2611 | -10/Subcaves | Learned Materials emergency access door positions 2723 | -10/Subcaves | Shifting Twisted Machinery released Humpback 2729 | -10/Subcaves | Shifting Twisted Machinery released Scrap Shield 2835 | -10/Subcaves | Discovered new exit (range 15) 2880 | -10/Subcaves | Identified exit to Materials 3510 | -10/Subcaves | Disturbed a concealed Subdweller 3512 | -10/Subcaves | Core integrity fell below 50% 3670 | -10/Subcaves | Disturbed a concealed Subdweller 3910 | -10/Subcaves | A swath of the cavern ceiling suddenly collapsed 4178 | -10/Subcaves | Discovered exit to Materials (range 14) 4541 | -10/Subcaves | Core integrity fell below 20% 4648 | -10/Subcaves | Shifting Twisted Machinery released Mak. Light Armor Plating 4807 | -10/Subcaves | Shifting Twisted Machinery released Humpback 5107 | -10/Subcaves | Discovered new exit (range 13) 5165 | -10/Subcaves | Entered Recycling 5362 | -9/Recycling | Scanned before Scraplab entrance 5381 | -9/Recycling | Entered Scraplab 5390 | -9/Recycling | Discovered new exit (range 3) 5392 | -9/Recycling | Entered Scraptown 5550 | -9/Scraptown | Scanned Subdweller tech in exchange for log data 5553 | -9/Scraptown | Learned location of Warlord (-4) 5554 | -9/Scraptown | Learned 8 Research zone layouts 5555 | -9/Scraptown | Learned Factory stockpile data 5593 | -9/Scraptown | Discovered new exit (range 5) 5629 | -9/Scraptown | Heard Great Nut preacher, LISTEN AND RECITE! 6223 | -9/Scraptown | Visited CPS Storage 6249 | -9/Scraptown | Visited Comm Corps 6296 | -9/Scraptown | Visited Junk Repository 6315 | -9/Scraptown | Visited Symbiants 6445 | -9/Scraptown | Visited Shadow of the Wyrm 6465 | -9/Scraptown | Visited Assassins FH 6491 | -9/Scraptown | Visited CR-KLE's Repair Center 6599 | -9/Scraptown | Visited UFD Registry 6599 | -9/Scraptown | Registered with UFD as "Flakrider" 6622 | -9/Scraptown | Visited Curators Association 6657 | -9/Scraptown | Visited DA-N13 Charitable Foundation 6667 | -9/Scraptown | Found DCF Scrap (28 items) 6721 | -9/Scraptown | Visited Science Guys 6789 | -9/Scraptown | Delivered Scrap Shield to a Scientist 6928 | -9/Scraptown | Visited LU-1G1's Boring Crew 6980 | -9/Scraptown | Visited Analyses Database 7005 | -9/Scraptown | Visited Derelict Rescue Squad 7028 | -9/Scraptown | Visited Cartography Club 7096 | -9/Scraptown | Learned location of Proximity Caves (-6) 7096 | -9/Scraptown | Learned location of Zion (-6) 7096 | -9/Scraptown | Learned 8 Factory zone layouts 7096 | -9/Scraptown | Learned 16 Factory zone layouts 7096 | -9/Scraptown | Learned 20 Factory zone layouts 7096 | -9/Scraptown | Learned 20 Lower Caves zone layouts 7096 | -9/Scraptown | Learned 24 Upper Caves zone layouts 7096 | -9/Scraptown | Learned 24 Proximity Caves zone layouts 7096 | -9/Scraptown | Learned 4 Hub_04(d) zone layouts 7096 | -9/Scraptown | Learned Factory emergency access door positions 7096 | -9/Scraptown | Learned location of 1 exit from Research 7096 | -9/Scraptown | Learned location of 2 exits from Lower Caves 7096 | -9/Scraptown | Identified exit to Factory 7120 | -9/Scraptown | Found Deep Structural Scanner 7332 | -9/Scraptown | Visited Botcube Research 7344 | -9/Scraptown | Found Lrg. Botcube 7386 | -9/Scraptown | Visited Science Testing Area 8767 | -9/Scraptown | Lrg. Botcube activated 8805 | -9/Scraptown | Lrg. Botcube completed mutation into treaded form, armed with 4 guns. 9035 | -9/Scraptown | CR-KLE repaired 6 parts 9384 | -9/Scraptown | Met Optimus 9384 | -9/Scraptown | Accepted into 0bPrime 9458 | -9/Scraptown | Entered Factory 9458 | -6/Factory | Accompanied by 1 ally 9458 | -6/Factory | Evolved 8 slots: Power x1, Propulsion x2, Utility x5 9459 | -6/Factory | Identified exit to Factory 9459 | -6/Factory | Identified exit to Lower Caves 9460 | -6/Factory | Identified exit to Extension 9489 | -6/Factory | Found Prototype Processor 9492 | -6/Factory | Found Prototype Processor 9499 | -6/Factory | Found Prototype Processor 9524 | -6/Factory | Identified Exp. Targeting Computer (x3) 9806 | -6/Factory | Build established: Derelict-Mutant 9858 | -6/Factory | Loaded intel: 8 recycling unit locations 9909 | -6/Factory | Learned location of Protoforge (-2) 10249 | -6/Factory | Garrison activated, responded to threat 10282 | -6/Factory | Spotted B-75 Beast 10323 | -6/Factory | Destroyed B-75 Beast 10366 | -6/Factory | Lost 6 parts (2p1n2u1w) 10599 | -6/Factory | Entered Extension 10748 | -6/Extension | Rescued a captive Derelict 10749 | -6/Extension | Rescued a captive Derelict 10771 | -6/Extension | Build established: Scavenger-Mutant 11181 | -6/Extension | Rescued a captive Derelict 11226 | -6/Extension | Rescued a captive Derelict 11227 | -6/Extension | Rescued a captive Derelict 11580 | -6/Extension | Spotted B-75 Beast 11588 | -6/Extension | Destroyed B-75 Beast 11609 | -6/Extension | Spotted B-75 Beast 11634 | -6/Extension | Destroyed B-75 Beast 11674 | -6/Extension | Lost 4 allies 11776 | -6/Extension | Rescued a captive Derelict 11881 | -6/Extension | Rescued a captive Derelict 11881 | -6/Extension | Rescued a captive Derelict 11916 | -6/Extension | Rescued a captive Derelict 11979 | -6/Extension | Rescued a captive Derelict 12079 | -6/Extension | Rescued a captive Derelict 12147 | -6/Extension | Rescued A7 12324 | -6/Extension | Discovered exit to Factory (range 10) 12328 | -6/Extension | Discovered new exit (range 6) 12402 | -6/Extension | Entered Cetus 12402 | -6/Cetus | Accompanied by 17 allies (A7) 12407 | -6/Cetus | Acquired a Cetus Manufacturing Module code from A7 12422 | -6/Cetus | Spotted Cetus Guard 12424 | -6/Cetus | Spotted Cetus Guard 12425 | -6/Cetus | Spotted Cetus Guard 12443 | -6/Cetus | Allies destroyed Cetus Guard 12449 | -6/Cetus | Allies destroyed Cetus Guard 12458 | -6/Cetus | Allies destroyed Cetus Guard 12602 | -6/Cetus | Started Cetus Manufacturing Module 12627 | -6/Cetus | Manufactured an Enhanced Grunt 12652 | -6/Cetus | Manufactured an Enhanced Grunt 12675 | -6/Cetus | Escorted A7 to Cetus Mainframe 12677 | -6/Cetus | Manufactured an Enhanced Grunt 12693 | -6/Cetus | Discovered new exit (range 16) 12702 | -6/Cetus | Manufactured an Enhanced Grunt 12726 | -6/Cetus | Spotted Cetus Guard 12726 | -6/Cetus | Spotted Cetus Guard 12727 | -6/Cetus | Manufactured an Enhanced Grunt 12730 | -6/Cetus | Spotted Cetus Guard 12731 | -6/Cetus | Spotted Cetus Guard 12739 | -6/Cetus | Allies destroyed Cetus Guard 12743 | -6/Cetus | Allies destroyed Cetus Guard 12746 | -6/Cetus | Allies destroyed Cetus Guard 12748 | -6/Cetus | Found Prototype Device 12748 | -6/Cetus | Identified Exp. Thermal Shield 12748 | -6/Cetus | Allies destroyed Cetus Guard 12772 | -6/Cetus | Discovered exit to Factory (range 15) 12774 | -6/Cetus | Lost 3 allies 12782 | -6/Cetus | Met Revision 17 12937 | -6/Cetus | Murdered A7 12940 | -6/Cetus | Extracted ID and sensor layout for unrecognized location from A7's data core 12945 | -6/Cetus | Found Prototype Protection 12945 | -6/Cetus | Identified Med. Regenerative Plating 13022 | -6/Cetus | Build established: Commander-Mutant 13065 | -6/Cetus | Entered Archives 13065 | -6/Archives | Accompanied by 17 allies 13136 | -6/Archives | Unable to access archive contents 13138 | -6/Archives | Lost 5 allies 13160 | -6/Archives | Discovered new exit (range 16) 15035 | -6/Archives | Discovered exit to Factory (range 15) 15248 | -6/Archives | Entered Hub_04(d) 15248 | -6/Hub_04(d) | Accompanied by 12 allies 15249 | -6/Hub_04(d) | Spotted B-75 Beast 15259 | -6/Hub_04(d) | Allies destroyed B-75 Beast 15356 | -6/Hub_04(d) | Discovered exit to Factory (range 10) 15598 | -6/Hub_04(d) | First assault squad dispatched 15656 | -6/Hub_04(d) | Lost 4 allies 15683 | -6/Hub_04(d) | Build established: Scavenger-Mutant 15909 | -6/Hub_04(d) | Network Hub disabled 15910 | -6/Hub_04(d) | Core integrity fell below 50% 15957 | -6/Hub_04(d) | Spotted Lightning 15973 | -6/Hub_04(d) | Spotted Lightning 15988 | -6/Hub_04(d) | Spotted Lightning 15990 | -6/Hub_04(d) | Destroyed Lightning 16004 | -6/Hub_04(d) | Destroyed Lightning 16029 | -6/Hub_04(d) | Found Prototype Device 16030 | -6/Hub_04(d) | Identified Exp. EM Shield 16034 | -6/Hub_04(d) | Found Prototype Device 16035 | -6/Hub_04(d) | Identified Exp. Phase Shifter 16055 | -6/Hub_04(d) | Destroyed Lightning 16072 | -6/Hub_04(d) | Found Exp. EM Shield 16081 | -6/Hub_04(d) | Found Prototype Energy Cannon 16084 | -6/Hub_04(d) | Network Hub disabled 16159 | -6/Hub_04(d) | Network Hub disabled 16163 | -6/Hub_04(d) | Network Hub disabled 16197 | -6/Hub_04(d) | Found Exp. Targeting Computer 16199 | -6/Hub_04(d) | Entered Factory 16199 | -5/Factory | Evolved 2 slots: Utility x2 16204 | -5/Factory | Identified EMDS 16495 | -5/Factory | Loaded intel: 8 recycling unit locations 16514 | -5/Factory | Build established: Scavenger-Skirmisher 16650 | -5/Factory | Repaired Centrium Medium Armor Plating 17170 | -5/Factory | Build established: Scavenger-Mutant 17260 | -5/Factory | Identified exit to Upper Caves 17368 | -5/Factory | Repaired Centrium Heavy Treads 17559 | -5/Factory | Build established: Scavenger-Skirmisher 17868 | -5/Factory | Destroyed 10 combat bots 17984 | -5/Factory | Build established: Scavenger-Mutant 17999 | -5/Factory | First assault squad dispatched 18339 | -5/Factory | Entered Upper Caves 18340 | -5/Upper Caves | Identified exit to Upper Caves 18341 | -5/Upper Caves | UFD Scientist delivered a prototype 18346 | -5/Upper Caves | Found Prototype Protection 18563 | -5/Upper Caves | Identified Enh. Scrap Shield 19332 | -5/Upper Caves | Learned Factory stockpile data 19578 | -5/Upper Caves | Encountered a Warlord checkpoint 19726 | -5/Upper Caves | Learned Factory emergency access door positions 20295 | -5/Upper Caves | Entered another Upper Caves area 20350 | -5/Upper Caves | Discovered new exit (range 16) 20505 | -5/Upper Caves | Identified exit to Factory 21290 | -5/Upper Caves | Discovered new exit (range 16) 21389 | -5/Upper Caves | Identified exit to Zhirov 21613 | -5/Upper Caves | Found Alien Artifact 21817 | -5/Upper Caves | Learned Factory trap positions 22412 | -5/Upper Caves | Entered Zhirov 22412 | -5/Zhirov | Discovered new exit (range 4) 22441 | -5/Zhirov | Met Zhirov 22470 | -5/Zhirov | Learned location of Quarantine (-3) 22470 | -5/Zhirov | Learned location of Testing (-2) 22470 | -5/Zhirov | Learned location of Command (-1) 22504 | -5/Zhirov | Zhirov requested help retrieving the SGEMP Prototype 22530 | -5/Zhirov | Found Alien Artifact 22530 | -5/Zhirov | Identified Integrated Reactor 22530 | -5/Zhirov | Installed Integrated Reactor, increased core energy generation (+10) 22556 | -5/Zhirov | Found Alien Artifact 22757 | -5/Zhirov | Identified exit to Proximity Caves 22760 | -5/Zhirov | Entered Proximity Caves 22780 | -4/Proximity Caves | Learned Research non-interactive machine intel 23739 | -4/Proximity Caves | Attracted the attention of an 0b10 checkpoint 24158 | -4/Proximity Caves | Learned location of 1 exit from Research 25031 | -4/Proximity Caves | Entered Factory 25031 | -4/Factory | Evolved 2 slots: Propulsion x2 25032 | -4/Factory | Loaded intel: 67 trap records 25150 | -4/Factory | Loaded intel: 8 recycling unit locations 25158 | -4/Factory | Fabricated Enh. Hardcell Cannon? 25222 | -4/Factory | Identified Dimensional Node Initializer 25222 | -4/Factory | Identified Transdimensional Reconstructor 25701 | -4/Factory | Discovered new exit (range 8) 25828 | -4/Factory | Identified exit to Upper Caves 26180 | -4/Factory | Spotted B-86 Titan 26204 | -4/Factory | Entered Upper Caves 26362 | -4/Upper Caves | Found DCF Scrap (14 items) 26640 | -4/Upper Caves | Encountered a Warlord checkpoint 26670 | -4/Upper Caves | Build established: Mutant 26976 | -4/Upper Caves | Discovered new exit (range 7) 26982 | -4/Upper Caves | Identified exit to Upper Caves 27155 | -4/Upper Caves | Entered another Upper Caves area 27284 | -4/Upper Caves | Learned 8 Research zone layouts 27720 | -4/Upper Caves | Attracted the attention of an 0b10 checkpoint 28137 | -4/Upper Caves | Build established: Hacker-Mutant 28610 | -4/Upper Caves | Attracted the attention of an 0b10 outpost 28830 | -4/Upper Caves | Learned Research emergency access door positions 28955 | -4/Upper Caves | Discovered new exit (range 8) 28965 | -4/Upper Caves | Identified exit to Warlord 29454 | -4/Upper Caves | Entered Warlord 29479 | -4/Warlord | Discovered new exit (range 21) 29677 | -4/Warlord | Build established: Mutant 29685 | -4/Warlord | Visited the Vortex Lab 29698 | -4/Warlord | Warlord's base attacked by MAIN.C 29698 | -4/Warlord | Found Prototype Energy Gun 29700 | -4/Warlord | Identified Vortex Shotgun 29700 | -4/Warlord | Found Vortex Shotgun 29785 | -4/Warlord | Found Prototype Device 29787 | -4/Warlord | Found Prototype Processor 29810 | -4/Warlord | Identified Spectral Analyzer 29811 | -4/Warlord | Identified Exp. Focal Shield 29813 | -4/Warlord | Found Prototype Reactor 29814 | -4/Warlord | Identified Vortex Chain Reactor 29879 | -4/Warlord | Lost 3 allies 30048 | -4/Warlord | Warlord forces counterattacked 30060 | -4/Warlord | Spotted Striker 30106 | -4/Warlord | Lost 5 allies 30135 | -4/Warlord | Spotted Executioner 30154 | -4/Warlord | Spotted Executioner 30157 | -4/Warlord | Spotted Executioner 30163 | -4/Warlord | Destroyed Executioner 30164 | -4/Warlord | P-70 Sage assimilated allied E3-2YB(g) 30196 | -4/Warlord | Lost 7 allies 30198 | -4/Warlord | Found Prototype Processor 30198 | -4/Warlord | Identified Exp. Core Analyzer 30199 | -4/Warlord | Spotted Executioner 30201 | -4/Warlord | Spotted Striker 30219 | -4/Warlord | Spotted Executioner 30232 | -4/Warlord | Destroyed Striker 30235 | -4/Warlord | Destroyed Executioner 30258 | -4/Warlord | Lost 12 allies 30264 | -4/Warlord | Destroyed Executioner 30298 | -4/Warlord | Spotted Striker 30317 | -4/Warlord | Destroyed 16 combat bots 30373 | -4/Warlord | Warlord base infiltrated, sounded retreat 30511 | -4/Warlord | Spotted Striker 30587 | -4/Warlord | Lost 3 allies 30659 | -4/Warlord | Spotted Executioner 30666 | -4/Warlord | Destroyed Executioner 30698 | -4/Warlord | Destroyed 13 combat bots 30707 | -4/Warlord | Spotted Striker 30720 | -4/Warlord | Spotted Executioner 30761 | -4/Warlord | Destroyed 14 combat bots 30771 | -4/Warlord | Identified exit to Proximity Caves 30774 | -4/Warlord | Entered Proximity Caves 31059 | -3/Proximity Caves | Build established: Scavenger-Skirmisher 31944 | -3/Proximity Caves | Discovered new exit (range 5) 31959 | -3/Proximity Caves | Identified exit to Research 32416 | -3/Proximity Caves | Entered Research 32416 | -3/Research | Evolved 2 slots: Propulsion x2 32417 | -3/Research | Identified exit to Armory 32417 | -3/Research | Identified exit to Quarantine 32418 | -3/Research | Identified exit to Research 32421 | -3/Research | Loaded intel: 94 non-interactive machine locations 32616 | -3/Research | Revision forces began assault on 0b10 32673 | -3/Research | Met up with Revision 17++ 33116 | -3/Research | Research terminal network offline 33183 | -3/Research | Spotted Striker 33183 | -3/Research | Spotted Executioner 33198 | -3/Research | Spotted Striker 33202 | -3/Research | Spotted Striker 33239 | -3/Research | Entered Armory 33243 | -3/Armory | Lost 6 allies 33419 | -3/Armory | Found Quantum Capacitor 33421 | -3/Armory | Found Quantum Capacitor 33694 | -3/Armory | Warped through subspace to slip node 33694 | -3/Armory | Discovered new exit (range 1) 33694 | -3/Armory | Identified exit to Lab 33695 | -3/Armory | Entered Lab 33695 | -3/Lab | Discovered exit to Research (range 10) 33867 | -3/Lab | Hidden lab's door opened automatically 33867 | -3/Lab | Sensor layout match revealed 33868 | -3/Lab | Gained access to the hidden lab's interior 33980 | -3/Lab | Found Alien Artifact 33994 | -3/Lab | Found Transdimensional Reconstructor 33995 | -3/Lab | Identified Integrated Dissipator 33995 | -3/Lab | Installed Integrated Dissipator, increased core heat dissipation (+20) 33999 | -3/Lab | Found Alien Artifact 34016 | -3/Lab | Build established: Mutant 34070 | -3/Lab | Found Prototype Energy Cannon 34073 | -3/Lab | Found Med. Regenerative Plating 34075 | -3/Lab | Found Prototype Hackware 34075 | -3/Lab | Identified Quantum Router 34212 | -3/Lab | Entered Research 34212 | -2/Research | Evolved 2 slots: Utility x2 34213 | -2/Research | Identified exit to Access 34309 | -2/Research | Identified exit to Testing 34356 | -2/Research | Identified Potential Cannon 34364 | -2/Research | Build established: Hacker-Mutant 34947 | -2/Research | Spotted B-90 Cyclops 35056 | -2/Research | Spotted B-90 Cyclops 35256 | -2/Research | Build established: Hacker-Skirmisher 35420 | -2/Research | Found Fusion Bomb Launcher 35687 | -2/Research | Entered Testing 35768 | -2/Testing | Identified Core Regenerator 35890 | -2/Testing | Found Prototype Protection 35892 | -2/Testing | Identified SHELL Armor 36010 | -2/Testing | Found Prototype Ballistic Gun 36011 | -2/Testing | Identified Hyp. Multirail 36144 | -2/Testing | Spotted Striker 36166 | -2/Testing | Found Prototype Launcher 36207 | -2/Testing | Identified Gui. Micro-nuke Launcher 36333 | -2/Testing | Build established: Hacker-Mutant 36671 | -2/Testing | Spotted Fortress 36753 | -2/Testing | Discovered new exit (range 6) 36753 | -2/Testing | Discovered new exit (range 7) 36760 | -2/Testing | Identified exit to Protoforge 36768 | -2/Testing | Entered Protoforge 36940 | -2/Protoforge | Spotted Hotshot 37000 | -2/Protoforge | Initialized slip node 37156 | -2/Protoforge | Found Prototype Energy Gun 37160 | -2/Protoforge | Found Prototype Energy Gun 37161 | -2/Protoforge | Identified Cep. Variable Chargecaster (x2) 37167 | -2/Protoforge | Found Prototype Device 37169 | -2/Protoforge | Found Prototype Device 37173 | -2/Protoforge | Found Prototype Device 37182 | -2/Protoforge | Found Prototype Device 37195 | -2/Protoforge | Found Prototype Launcher 37218 | -2/Protoforge | Found Prototype Launcher 37237 | -2/Protoforge | Found Prototype Device 37258 | -2/Protoforge | System corruption reached 10% 37261 | -2/Protoforge | Identified Exp. System Purifier 37273 | -2/Protoforge | Identified Exp. Trap Extractor (x3) 37281 | -2/Protoforge | Identified Cep. Concussive Dispersal Blaster (x2) 37336 | -2/Protoforge | Spotted V417-d 37338 | -2/Protoforge | Superfortress began startup sequence 37394 | -2/Protoforge | Build established: Mutant 37456 | -2/Protoforge | Found Prototype Device 37470 | -2/Protoforge | Spotted Immortal 37470 | -2/Protoforge | Spotted Immortal 37492 | -2/Protoforge | Scanned by Researcher 37504 | -2/Protoforge | Destroyed V417-d 37518 | -2/Protoforge | First assault squad dispatched 37555 | -2/Protoforge | Found Prototype Device 37558 | -2/Protoforge | Found Prototype Device 37560 | -2/Protoforge | Found Prototype Device 37562 | -2/Protoforge | Found Prototype Device 37565 | -2/Protoforge | Identified Cep. Weapon Articulator 37566 | -2/Protoforge | Found Cep. Weapon Articulator 37570 | -2/Protoforge | Found Cep. Hypertargeting System 37571 | -2/Protoforge | Spotted V357-o 37572 | -2/Protoforge | Spotted V591-q 37573 | -2/Protoforge | Spotted V426-k 37573 | -2/Protoforge | Spotted V394-r 37575 | -2/Protoforge | Found Prototype Device 37593 | -2/Protoforge | Identified Crosscalibrator 37615 | -2/Protoforge | Spotted Decapitator 37615 | -2/Protoforge | Spotted Decapitator 37615 | -2/Protoforge | Spotted Decapitator 37615 | -2/Protoforge | Spotted Decapitator 37633 | -2/Protoforge | Destroyed Decapitator 37642 | -2/Protoforge | Destroyed Decapitator 37646 | -2/Protoforge | Destroyed Decapitator 37651 | -2/Protoforge | Destroyed Decapitator 37712 | -2/Protoforge | Found Prototype Device 37719 | -2/Protoforge | Found Exp. Force Field 37723 | -2/Protoforge | Identified Cep. Hardlight Director 37745 | -2/Protoforge | Identified Cep. Countertargeting System (x4) 37891 | -2/Protoforge | Destroyed Immortal 37900 | -2/Protoforge | Destroyed Immortal 37953 | -2/Protoforge | Destroyed 7 combat bots 37976 | -2/Protoforge | Found Prototype Storage 37980 | -2/Protoforge | Found Prototype Storage 37985 | -2/Protoforge | Found Prototype Storage 37988 | -2/Protoforge | Found Cep. Chromion Battery 37990 | -2/Protoforge | Used Core Regenerator, restored core integrity (+362) 37992 | -2/Protoforge | Found Cep. NT7 Matterbank 37996 | -2/Protoforge | Found Cep. Chromion Battery 38006 | -2/Protoforge | Found Faulty Cep. Matter Streamer 38009 | -2/Protoforge | Found Faulty Cep. Matter Streamer 38034 | -2/Protoforge | Identified Cep. Antigrav Storage Unit (x3) 38110 | -2/Protoforge | Forge Plexus network access discovered 38144 | -2/Protoforge | Spotted Decapitator 38144 | -2/Protoforge | Spotted V029-g 38144 | -2/Protoforge | Spotted V553-r 38152 | -2/Protoforge | Spotted Decapitator 38168 | -2/Protoforge | Destroyed Decapitator 38185 | -2/Protoforge | Destroyed Decapitator 38206 | -2/Protoforge | Found Cep. Smart ZDS 38227 | -2/Protoforge | Found Cep. Arcsight Missile Launcher 38235 | -2/Protoforge | Found Faulty Cep. Tactical Fusion Warhead 38250 | -2/Protoforge | Found Cep. Tactical Fusion Warhead 38311 | -2/Protoforge | Crushed by falling debris 38426 | -2/Protoforge | Found Faulty Cep. Biometal Exoskeleton 38454 | -2/Protoforge | Found Cep. Biometal Exoskeleton 38596 | -2/Protoforge | Spotted Immortal 38596 | -2/Protoforge | Spotted Immortal 38629 | -2/Protoforge | Destroyed Immortal 38639 | -2/Protoforge | Destroyed Immortal 38652 | -2/Protoforge | Spotted V701-j 38652 | -2/Protoforge | Spotted V577-x 38652 | -2/Protoforge | Spotted V307-t 38712 | -2/Protoforge | Spotted Decapitator 38718 | -2/Protoforge | Build established: Scavenger-Mutant 38769 | -2/Protoforge | Spotted V341-o 38807 | -2/Protoforge | Spotted V640-a 38827 | -2/Protoforge | Found Cep. Miniperforator 38831 | -2/Protoforge | Found Faulty Cep. Variable Chargecaster 38833 | -2/Protoforge | Found Faulty Cep. Lightning Penetrator 38837 | -2/Protoforge | Found Faulty Cep. Helical Railcannon 38841 | -2/Protoforge | Found Faulty Cep. Plasma Driver 38844 | -2/Protoforge | Found Cep. Plasma Driver 38847 | -2/Protoforge | Found Cep. Heavy Railcannon 38849 | -2/Protoforge | Found Cep. XC Strikerail 38853 | -2/Protoforge | Spotted V877-g 38857 | -2/Protoforge | Found Cep. XC Strikerail 38862 | -2/Protoforge | Found Cep. Lightning Penetrator 38865 | -2/Protoforge | Found Faulty Cep. Plasma Driver 38867 | -2/Protoforge | Found Cep. Variable Chargecaster 38870 | -2/Protoforge | Found Faulty Cep. Heavy Railcannon 38917 | -2/Protoforge | Found Faulty Cep. Helical Railcannon 38920 | -2/Protoforge | Found Cep. Helical Railcannon 38972 | -2/Protoforge | Warped through subspace to slip node 39062 | -2/Protoforge | Spotted AP7-3 39115 | -2/Protoforge | Build established: Mutant 39174 | -2/Protoforge | Spotted Decapitator 39174 | -2/Protoforge | Spotted Decapitator 39178 | -2/Protoforge | Spotted EXE-6 39179 | -2/Protoforge | Spotted EXE-6 39239 | -2/Protoforge | UFD initiated attack on Protoforge 39239 | -2/Protoforge | Loaded intel: 3 recycling unit locations 39267 | -2/Protoforge | Destroyed Decapitator 39276 | -2/Protoforge | Optimus greeted in Protoforge 39292 | -2/Protoforge | Found Prototype Processor 39292 | -2/Protoforge | Identified Exp. Armor Integrity Analyzer 39379 | -2/Protoforge | Spotted AP7-3 39391 | -2/Protoforge | Lost 12 allies 39431 | -2/Protoforge | Destroyed AP7-3 39467 | -2/Protoforge | Lost 7 allies 39469 | -2/Protoforge | Spotted Overlord 39477 | -2/Protoforge | Destroyed Overlord 39514 | -2/Protoforge | Spotted Striker 39515 | -2/Protoforge | Destroyed Striker 39518 | -2/Protoforge | Spotted Striker 39519 | -2/Protoforge | Destroyed Striker 39548 | -2/Protoforge | Spotted Executioner 39549 | -2/Protoforge | P-80 Master assimilated allied 7U-50D(E) 39557 | -2/Protoforge | Spotted Executioner 39569 | -2/Protoforge | Destroyed Executioner 39582 | -2/Protoforge | Destroyed Executioner 39593 | -2/Protoforge | Spotted Striker 39597 | -2/Protoforge | Spotted Striker 39600 | -2/Protoforge | Destroyed Striker 39611 | -2/Protoforge | Build established: Scavenger-Mutant 39615 | -2/Protoforge | Spotted Hotshot 39621 | -2/Protoforge | Destroyed 15 combat bots 39658 | -2/Protoforge | Lost 12 allies 39668 | -2/Protoforge | Spotted Hotshot 39668 | -2/Protoforge | Spotted Hotshot 39671 | -2/Protoforge | Spotted Executioner 39672 | -2/Protoforge | Destroyed Executioner 39701 | -2/Protoforge | Destroyed Hotshot 39716 | -2/Protoforge | Discovered exit to Access (range 16) 39716 | -2/Protoforge | Spotted Striker 39730 | -2/Protoforge | Spotted Executioner 39743 | -2/Protoforge | Destroyed Executioner 39786 | -2/Protoforge | UFD reported confirmed Drillbomb installation 39789 | -2/Protoforge | Spotted Striker 39789 | -2/Protoforge | Spotted Executioner 39789 | -2/Protoforge | Spotted Striker 39789 | -2/Protoforge | Spotted Striker 39797 | -2/Protoforge | Destroyed Striker 39799 | -2/Protoforge | Destroyed Striker 39803 | -2/Protoforge | Destroyed Executioner 39810 | -2/Protoforge | Found Corrupted Prototype Device 39814 | -2/Protoforge | Spotted Striker 39814 | -2/Protoforge | Spotted Striker 39833 | -2/Protoforge | Destroyed Striker 39861 | -2/Protoforge | Destroyed 17 combat bots 39889 | -2/Protoforge | Spotted Striker 39889 | -2/Protoforge | Spotted Executioner 39889 | -2/Protoforge | Spotted Executioner 39889 | -2/Protoforge | Spotted Striker 39894 | -2/Protoforge | UFD reported confirmed Drillbomb installation 39895 | -2/Protoforge | Destroyed Executioner 39895 | -2/Protoforge | Destroyed Executioner 39897 | -2/Protoforge | Destroyed Striker 39901 | -2/Protoforge | Destroyed Striker 39914 | -2/Protoforge | Spotted Executioner 39914 | -2/Protoforge | Spotted Executioner 39918 | -2/Protoforge | Destroyed Executioner 39939 | -2/Protoforge | Destroyed 17 combat bots 40006 | -2/Protoforge | Destroyed Hotshot 40017 | -2/Protoforge | Spotted Striker 40017 | -2/Protoforge | Spotted Striker 40021 | -2/Protoforge | Destroyed Striker 40027 | -2/Protoforge | Destroyed Striker 40032 | -2/Protoforge | Found 0bPrime Scrap Suit 40068 | -2/Protoforge | Destroyed 7 combat bots 40071 | -2/Protoforge | UFD reported confirmed Drillbomb installation 40089 | -2/Protoforge | Spotted Executioner 40089 | -2/Protoforge | Spotted Striker 40089 | -2/Protoforge | Spotted Executioner 40089 | -2/Protoforge | Spotted Executioner 40089 | -2/Protoforge | Destroyed Executioner 40089 | -2/Protoforge | Destroyed Executioner 40099 | -2/Protoforge | Destroyed Executioner 40114 | -2/Protoforge | Spotted Executioner 40114 | -2/Protoforge | Spotted Striker 40139 | -2/Protoforge | Destroyed 12 combat bots 40139 | -2/Protoforge | Destroyed Striker 40160 | -2/Protoforge | Lost 4 allies 40189 | -2/Protoforge | Spotted Striker 40189 | -2/Protoforge | Spotted Executioner 40189 | -2/Protoforge | Spotted Striker 40189 | -2/Protoforge | Spotted Striker 40191 | -2/Protoforge | Destroyed Striker 40216 | -2/Protoforge | Spotted Executioner 40217 | -2/Protoforge | Destroyed Striker 40222 | -2/Protoforge | Spotted Executioner 40222 | -2/Protoforge | Destroyed Executioner 40227 | -2/Protoforge | Destroyed Executioner 40237 | -2/Protoforge | Lost 3 allies 40240 | -2/Protoforge | Destroyed Executioner 40270 | -2/Protoforge | Destroyed 20 combat bots 40337 | -2/Protoforge | Spotted Striker 40338 | -2/Protoforge | Spotted Striker 40339 | -2/Protoforge | Destroyed Striker 40374 | -2/Protoforge | UFD reported confirmed Drillbomb installation 40389 | -2/Protoforge | Spotted Striker 40389 | -2/Protoforge | Spotted Striker 40389 | -2/Protoforge | Spotted Executioner 40389 | -2/Protoforge | Spotted Executioner 40391 | -2/Protoforge | Destroyed Executioner 40395 | -2/Protoforge | Destroyed Executioner 40397 | -2/Protoforge | Destroyed Striker 40404 | -2/Protoforge | Destroyed Striker 40414 | -2/Protoforge | Spotted Executioner 40414 | -2/Protoforge | Spotted Executioner 40416 | -2/Protoforge | Destroyed Executioner 40436 | -2/Protoforge | Destroyed Executioner 40457 | -2/Protoforge | Destroyed 21 combat bots 40488 | -2/Protoforge | Found UFD Drillbomb 40491 | -2/Protoforge | Destroyed Striker 40494 | -2/Protoforge | Destroyed Executioner 40500 | -2/Protoforge | Spotted Executioner 40504 | -2/Protoforge | Destroyed Executioner 40514 | -2/Protoforge | Spotted Executioner 40514 | -2/Protoforge | Spotted Striker 40522 | -2/Protoforge | Destroyed Executioner 40543 | -2/Protoforge | Destroyed 13 combat bots 40547 | -2/Protoforge | Installed UFD Drillbomb at designated target 40547 | -2/Protoforge | UFD reported confirmed Drillbomb installation 40549 | -2/Protoforge | Lost 5 allies 40582 | -2/Protoforge | UFD reported confirmed Drillbomb installation 40589 | -2/Protoforge | Spotted Striker 40589 | -2/Protoforge | Spotted Executioner 40589 | -2/Protoforge | Spotted Striker 40589 | -2/Protoforge | Spotted Striker 40590 | -2/Protoforge | Destroyed Striker 40592 | -2/Protoforge | Destroyed Striker 40599 | -2/Protoforge | Destroyed Striker 40614 | -2/Protoforge | Spotted Striker 40614 | -2/Protoforge | Spotted Striker 40619 | -2/Protoforge | Destroyed Striker 40640 | -2/Protoforge | Destroyed 16 combat bots 40680 | -2/Protoforge | Found UFD Drillbomb 40692 | -2/Protoforge | UFD reported confirmed Drillbomb installation 40734 | -2/Protoforge | Installed UFD Drillbomb at designated target 40734 | -2/Protoforge | UFD reported confirmed Drillbomb installation 40789 | -2/Protoforge | Found UFD Drillbomb 40912 | -2/Protoforge | Installed UFD Drillbomb at designated target 40912 | -2/Protoforge | UFD reported confirmed Drillbomb installation 40993 | -2/Protoforge | Spotted Striker 40993 | -2/Protoforge | Spotted Striker 40993 | -2/Protoforge | Spotted Executioner 41012 | -2/Protoforge | Destroyed Striker 41014 | -2/Protoforge | Destroyed Executioner 41028 | -2/Protoforge | Lost 4 allies 41034 | -2/Protoforge | UFD reported confirmed Drillbomb installation 41035 | -2/Protoforge | UFD began Drillbomb countdown 41037 | -2/Protoforge | Destroyed 8 combat bots 41135 | *** | Defending 0bPrime! Last Messages --------------- 41131_ 0bP_NET: Okay how about this, the iron fist is going to be less iron in T-4. 41131_ N-04 Retriever inserts CPS Tube into Forge Plexus. 41132_ System corrupted: Matter fused (-6). 41132_ 0bP_NET: That's a little better. 41132_ N-04 Retriever inserts Mak. Medium Armor Plating into Forge Plexus. 41133_ Acquired 6 matter. 41133_ 0bP_NET: PRAISE BE TO GREAT NUT! 41133_ N-04 Retriever inserts Scrap Suit into Forge Plexus. 41133_ N-04 Retriever inserts Transport Network Coupler into Forge Plexus. 41134_ 0bP_NET: Dammit, I said..., ugh, T-1 folks! Take cover! 41134_ N-04 Retriever inserts Ovr. Coil Gun into Forge Plexus. 41134_ N-04 Retriever inserts Ovr. Railgun into Forge Plexus. Map ----- +----------------------------------------------------+ | """""""""""""""""""%%""% " "#?????????????? | | """""""""""""""""""%%%"% "" "" " "#?????????????? | | """""""""""""""""""%%%% " " "#?????????????? | | """"""""""""""""""" % % " #?????????????? | | """"""""""""""""""" % #?????????????? | | """"""""""""""""""" % ##????????????? | | """"""""""""""""""" % " #????????????? | | """"""""""""""""""" " %"" "" #????????????? | | """""""""""""""""""%" "" " #?????????????? | | """""""""""""""""" %" " " %"#?????????????? | | """"""""""""""""""%"""% " #?????????????? | | """""""""""""""""" "SS """ % #?????????????? | | """"""""""""""""" % " SS " #?????????????? | | """""""""""""""" "" " "" #?????????????? | | """""""""""""""% " """" #?????????????? | | """""""""""""" " " "" #?????????????? | | """"""""""""" " E " "" #?????????????? | | """""""""""" "" "" " "" #?????????????? | | """""""""ssj "" "" s #?????????????? | | %nn "" "" "" """ s""" #?????????????? | | " " "" "" "" SS""" #?????????????? | | " " " " SS""" ###???????????? | | " "%"" """ "" """ s "" <&#???????????? | | "" %" " "" <&#???????????? | | "" % " s E % <&#???????????? | | "" "% @ &&#???????????? | | " j % 3 &&#???????????? | | "%T s &&#???????????? | | "" % """ % ###???????????? | | % #?????????????? | | #?????????????? | | "" " "" % #?????????????? | | """ #?????????????? | | """"""""" " """""" #?????????????? | | ######################; ###########?????????????? | | ?????????????????#"" ""#???????????????????? | | ???????????????###" "###?????????????????? | | ???????????????#"" ""#?????????????????? | | ???????????????#"" ""#?????????????????? | | ???????????????#"" ""#?????????????????? | | ???????????????#"Y Y"#?????????????????? | | ???????????????#"" ""#?????????????????? | | ???????????????#"" ""#?????????????????? | | ???????????????#"" ""#?????????????????? | | ???????????????###" "###?????????????????? | | ?????????????????#"" ""#???????????????????? | | ?????????????????###"""Y"""###???????????????????? | | ???????????????????#"""""""#?????????????????????? | | ???????????????????#########?????????????????????? | | ?????????????????????????????????????????????????? | +----------------------------------------------------+ Best States ------------- Heat Dissipation 110 Coolant Potential 100 Energy Generation 65 Energy Capacity 700 Matter Stores 300 Matter Capacity 300 Sight Range 24 Robot Scan Range 16 Terrain Scan Range 16 Terrain Scan Density 10 Jamming Range 16 Cloak Strength 3 Base Temperature (-) 200 EM Shielding 3 Corruption Block 15 Armor Coverage 2050 Resistance: TH 30 Resistance: EM 75 Propulsion Shielding 90 Phase Shifting 20 Evasion (%) 82 Targeting Accuracy 30 Target Analysis 6 Core Analysis 8 Armor Integrity Analysis 50 Recoil Reduction 6 Matter Filtering 50 Salvage Targeting 4 Offensive Hacking 14 Defensive Hacking 25 Item Schematics ----------------- Hcp. Storage Unit | -5/Factory | Hacked Assault Drone Bay | -5/Zhirov | Free Exp. Heat Sink | -5/Zhirov | Free Exp. Optical Array | -5/Zhirov | Free Imp. Arc Thrower | -5/Zhirov | Free Cld. Aerolev Unit | -3/Research | Hacked Robot Schematics ------------------ None Fabricated ------------ Enh. Hardcell Cannon | x2 | -4/Factory | Preloaded Repaired ---------- Centrium Medium Armor Plating | 60% | -5/Factory Centrium Heavy Treads | 41% | -5/Factory Alien Tech Used ----------------- Integrated Reactor Transdimensional Reconstructor Integrated Dissipator Dimensional Node Initializer Core Regenerator Achievements -------------- None Challenges ------------ None Game ------ Seed LauncherTargetingChip Manual? 0 Play Time 09:08:13 Cumulative 589.7 hours Start 2025.05.15 @ 20:27:58 End 2025.05.17 @ 00:41:45 Sessions 5 Manual Loads 0 Difficulty Rogue Special Mode None Game No. 131 Rogue 131 Adventurer 0 Explorer 0 Win Type 9 Total 34 Types 10/3/7/1/1/1/8/1/1/1 Lore% 68 Gallery% 80 Achievement% 79 Wizard Run 0 Options --------- Layout 1 ASCII 0 Keyboard 0 Movement Mouse Keybinds 0 Fullscreen 1 Font 24/Smallcaps Map View 50x35 Zoom Use 3% Tactical HUD 1 Map Filters NONE Filters NONE Steam 1 RUN: eba4db16-2102-4ecd-8637-348f042a4e3c